Workbook

Sheet Instructions
E3: Indoor Water Use Reduction Calculator LEED v4 and v4.1 for D+C and v4 for O+M - WE Prerequisite/Credit Indoor Water Use Reduction LEED v4 for ND - GIB Prerequisite/Credit Indoor Water Use Reduction and GIB Credit Wastewater Management
E5: Step 1.
E6: Enable macros.
E7: Note: This calculator is for use with Excel for Mac 2011 and Excel 2007 or later. If you are experiencing a problem with this calculator, please refer to the help center instructions below.
E8: Help Center Instructions
E9: Step 2.
E10: Unit of measurement | K10: IP units
E11: Note: This selection must match the unit of measurement chosen during project registration.
E13: Step 3.
E14: The project is LEED for Neighborhood Development | K14: No
E15: Note: This selection must match the rating system chosen during project registration.
E17: Step 4.
E18: For projects pursuing GIB Prerequisite/Credit Indoor Water Use Reduction
E19: Nonresidential, mixed-use, and multifamily residential buildings four stories or more Complete the Flush and/or Flow tables on the Group tab(s) for all new/major renovations nonresidential, mixed-use, and multifamily residential buildings four stories or more.
E20: Note: If actual occupancy is not known, use the default (residents = number of bedrooms + 1) for each dwelling unit. All residential units can be included in one group.
E23: Single-family residential and multiunit residential buildings three stories or fewer Complete the Lowrise Indoor Water Use tab for all new single-family residential and multiunit residential buildings three stories or fewer.
E25: Step 5.
E26: For projects pursuing GIB Credit Wastewater Management
E27: Complete the Lowrise Wastewater Use tab for all new single-family residential and multiunit residential buildings three stories or more.
E28: Note: The calculations performed for GIB Prerequisite/Credit Indoor Water Use Reduction are sufficient for documenting nonresidential, mixed-use, and multifamily residential buildings four stories or more.
E30: Step 4.
E31: Complete the Flush and/or Flow tables on the Group tab.
E33: Note: Projects with extremely complex occupancy and/or fixture usage patterns (such as where different types of occupants have different annual days of operation and use fixtures with differing flush and flow rates within the building) may complete a separate calculator tab to represent the usage for complex scenarios.
E36: =IF(NDrs = 1,"Step 6.","Step 5.") -> Step 5.
E37: Upload the completed spreadsheet to LEED Online. Complete any related summary fields in the LEED credit form with the results of the calculator.
E38: Note: Include in the prerequisite calculations all fixtures within the LEED project boundary. Include in the credit calculations all fixtures and fittings necessary to meet the needs of the occupants; some of these fittings and fixtures may be outside the tenant space (for Commercial Interiors) or project boundary (for New Construction). Upload a separate calculator for the credit as necessary.
C42: Assumptions
C43: Fixture Type | G43: Maximum Installed Flush/Flow Rate | K43: Duration (sec) | M43: Default Uses per Day
G44: IP | I44: SI | M44: Employees (FTE) | N44: Visitors | O44: Retail Customers | P44: Students (K-12) | Q44: Residential
C45: Toilet (male) | G45: 1.6 | H45: gpf | I45: 6 | J45: lpf | K45: n/a | M45: 1 | N45: 0.1 | O45: 0.1 | P45: 1 | Q45: 5
C46: Toilet (female) | G46: 1.6 | H46: gpf | I46: 6 | J46: lpf | K46: n/a | M46: 3 | N46: 0.5 | O46: 0.2 | P46: 3 | Q46: 5
C47: Urinal | G47: 1 | H47: gpf | I47: 3.8 | J47: lpf | K47: n/a | M47: 2 | N47: 0.4 | O47: 0.1 | P47: 2 | Q47: 0
C48: Public lavatory (restroom) faucet | G48: 0.5 | H48: gpm | I48: 1.9 | J48: lpm | K48: 30 | M48: 3 | N48: 0.5 | O48: 0.2 | P48: 3 | Q48: 0
C49: Private (residential) lavatory faucet | G49: 2.2 | H49: gpm | I49: 8.3 | J49: lpm | K49: 60 | M49: 0 | N49: 0 | O49: 0 | P49: 0 | Q49: 5
C50: Kitchen faucet | G50: 2.2 | H50: gpm | I50: 8.3 | J50: lpm | K50: 15 | M50: 1 | N50: 0 | O50: 0 | P50: 0 | Q50: 0
C51: Residential kitchen faucet | G51: 2.2 | H51: gpm | I51: 8.3 | J51: lpm | K51: 60 | M51: 0 | N51: 0 | O51: 0 | P51: 0 | Q51: 4
C52: Showerhead | G52: 2.5 | H52: gpm | I52: 9.5 | J52: lpm | K52: 300 | M52: 0.1 | N52: 0 | O52: 0 | P52: 0 | Q52: 0
C53: Residential showerhead | G53: 2.5 | H53: gpm | I53: 9.5 | J53: lpm | K53: 480 | M53: 0 | N53: 0 | O53: 0 | P53: 0 | Q53: 1
R56: V05.1 | T56: UOM | V56: RS
R57: Copyright © 2012 | T57: =IF(K10="IP units",1,2) -> 1 | U57: 1 = IP, 2 = SI | V57: =IF(K14="Yes",1,2) -> 2
R58: U.S. Green Building Council | V58: ND = 1, nonND =2
R59: All Rights Reserved | U59: Toilet | V59: Urinal
R60: Last Updated 08/18/2022 | T60: Toilet | U60: Conventional Water Closet | V60: Conventional Urinal
T61: Urinal | U61: Low-Flow Water Closet | V61: Low-Flow Urinal
U62: Dual-Flush Water Closet | V62: Non-Water Urinal
U63: Composting Toilet

Sheet Group 1
B2: =REPLACE(CELL("filename",A1),1,FIND("]",CELL("filename",A1)),"") -> Group 1
B5: Group name | D5: Group 1
B6: Table: Project Information
B7: Enter project occupancy information. This information should be consistent with occupancy numbers used in other LEED credits.
B8: Non-default gender mix The default gender mix is half male and half female. If necessary, modify the Male and Female occupant type columns for non-default gender mix if the project is specifically designed for an alternative gender ratio or the project is expected to have alternative gender usage rates for the life of the building. | Y8: Non-default gender mix | Z8: FALSE
B9: The project includes ADA and/or gender-neutral bathrooms If the project includes separate gender neutral and/or ADA restrooms without urinals, the LEED default assumption is that 5% of male occupants and 5% of female occupants use these restrooms. Enter 95% into the percent of males expected to use restrooms with urinals below. Alternately, the project team can estimate this percentage based on the project's restroom layout/anticipated usage patterns or weighted fixture counts. | Y9: Non-default gender mix | Z9: TRUE
B10: Occupancy Type | D10: Employees (FTE) | E10: Visitors | F10: Retail Customers | G10: Students (K-12) | H10: Residential | I10: Other (specify) | K10: Gender Ratio (%) | AB10: Nondefault values
B11: Total | K11: =SUM(K12:K13) -> 0 | X11: Baseline | Y11: Flow | Z11: =I49 -> 0 | AB11: =AB12+AB13 -> 0 | AC11: 0 | AD11: 0 | AE11: 0 | AF11: 0 | AG11: 0
B12: Male | D12: =IF(ISODD(D$11)=TRUE,INT(D$11/2)+1,D$11/2) -> 0 | E12: 0 | F12: 0 | G12: 0 | H12: 0 | I12: 0 | K12: =IFERROR(SUM($D$12:$I$12) / SUM(Total2),0) -> 0 | X12: Baseline | Y12: Flush | Z12: =I36 -> 0
B13: Female | D13: =INT(D$11/2) -> 0 | E13: 0 | F13: 0 | G13: 0 | H13: 0 | I13: 0 | K13: =IFERROR(SUM($D$13:$I$13)/SUM(Total2),0) -> 0 | X13: Design | Y13: Flow | Z13: =I50 -> 0
X14: Design | Y14: Flush | Z14: =I37 -> 0 | AB14: Default values
B15: Determine the percent of males expected to use urinals (enter 100% if all male restrooms have urinals, 0% if the project contains no urinals, etc)
B16: Percent of males expected to use restrooms with urinals | I16: 1 | AB16: =IF(ISODD(AB$11)=TRUE,INT(AB$11/2)+1,AB$11/2) -> 0 | AC16: 0 | AD16: 0 | AE16: 0 | AF16: 0 | AG16: 0
AB17: =INT(AB$11/2) -> 0 | AC17: 0 | AD17: 0 | AE17: 0 | AF17: 0 | AG17: 0
B18: Enter the number of days the project is accessible to employees or FTE.
B19: Annual days of operation | I19: 365
B20: =IF(I19>365,"Annual days of operation must be between 1 and 365.","") -> 
B21: For projects with dual-flush toilets
B22: Enter the resulting flush rate into the design case flush rate section below.
B23: =CONCATENATE("Low flush ",IF(Instructions!$T$57=1,"(gpf)","(lpf)")) -> Low flush (gpf)
B24: =CONCATENATE("Full flush ",IF(Instructions!$T$57=1,"(gpf)","(lpf)")) -> Full flush (gpf)
B25: =CONCATENATE("LEED weighted average flush rate ",IF(Instructions!$T$57=1,"(gpf)","(lpf)")) -> LEED weighted average flush rate (gpf) | E25: =IFERROR(((K12*E23* (2-(I16*2)) )+(K13*2*E23)+(K12*E24)+(K13*E24))/((K12*(1+ (2-(I16*2)) )+(K13*(1+2)))),0) -> 0
B27: Table: Flush Fixtures
B28: 1. Indicate the Fixture ID that matches the information provided in the plumbing schedule. 2. Select the Fixture Family and Fixture Type installed on the project. 3. Enter the Design Flush Rate identified by the manufacturer - for dual flush toilets, use the dual flush calculator to determine average flush rate. 4. Enter Percent of Occupants with access to the fixture. If the fixture is installed in all restrooms, use 100%. 5. If necessary, modify the Total Uses per Day column for non-default uses.
B29: Fixture Information | G29: Flush Rate | I29: Percent of Occupants (%) | K29: Uses per Day | R29: Total Daily Uses | U29: Total Daily Water Use
B30: Fixture ID | C30: Fixture Family | D30: Fixture Type | G30: =CONCATENATE("Baseline Flush Rate",IF(Instructions!T57=1," (gpf)"," (lpf)")) -> Baseline Flush Rate (gpf) | H30: =CONCATENATE("Design Flush Rate",IF(Instructions!T57=1," (gpf)"," (lpf)")) -> Design Flush Rate (gpf) | K30: Employees (FTE) | L30: Visitors | M30: Retail Customers | N30: Students (K-12) | O30: Residential | P30: =IF($I$10="Other (specify)","Other",$I$10) -> Other | R30: Default | S30: Non-default (Optional) | U30: =CONCATENATE("Baseline ",IF(Instructions!$T$57=1,"(gallons)","(liters)")) -> Baseline (gallons) | V30: =CONCATENATE("Design ",IF(Instructions!$T$57=1,"(gallons)","(liters)")) -> Design (gallons) | X30: Helper column
A31: =IF(B31>0,0,0) -> 0 | G31: =IFERROR(IF(Instructions!$T$57=1,VLOOKUP(C31,Instructions!$C$45:$J$47,5,TRUE),VLOOKUP(C31,Instructions!$C$45:$J$47,7,TRUE)),"") ->  | K31: =IF($D$11>0,IF($C31="Toilet (male)",1+(2*(1-$I$16)),IF($C31="Toilet (female)",Instructions!$M$46,IF($C31="Urinal",2*$I$16,0))),0) -> 0 | L31: =IF($E$11>0,IF($C31="Toilet (male)",0.1+(0.4*(1-$I$16)),IF($C31="Toilet (female)",Instructions!$N$46,IF($C31="Urinal",0.4*$I$16,0))),0) -> 0 | M31: =IF($F$11>0,IF($C31="Toilet (male)",0.1+(0.1*(1-$I$16)),IF($C31="Toilet (female)",Instructions!$O$46,IF($C31="Urinal",0.1*$I$16,0))),0) -> 0 | N31: =IF($G$11>0,IF($C31="Toilet (male)",1+(2*(1-$I$16)),IF($C31="Toilet (female)",Instructions!$P$46,IF($C31="Urinal",2*$I$16,0))),0) -> 0 | O31: =IF($H$11>0,IF($C31="Toilet (male)",Instructions!$Q$45,IF($C31="Toilet (female)",Instructions!$Q$46,IF($C31="Urinal",Instructions!$Q$47,0))),0) -> 0 | R31: =IFERROR(IF(C31="Toilet (female)",(($D$13*K31)+($E$13*L31)+($F$13*M31)+($G$13*N31)+($H$13*O31)+($I$13*P31)),(($D$12*K31)+($E$12*L31)+($F$12*M31)+($G$12*N31)+($H$12*O31)+($I$12*P31))),0) -> 0 | U31: =IFERROR(IF($S31>0,G31*(S31*(I31/100)),G31*(R31*(I31/100))),0) -> 0 | V31: =IFERROR(IF($S31>0,H31*(S31*(I31/100)),H31*(R31*(I31/100))),0) -> 0 | X31: =IF(OR(C31="Toilet (male)",C31="Toilet (female)"),"Toilet",IF(C31="Urinal","Urinal","")) -> 
A32: =IF(B32>0,0,0) -> 0 | G32: =IFERROR(IF(Instructions!$T$57=1,VLOOKUP(C32,Instructions!$C$45:$J$47,5,TRUE),VLOOKUP(C32,Instructions!$C$45:$J$47,7,TRUE)),"") ->  | K32: =IF($D$11>0,IF($C32="Toilet (male)",1+(2*(1-$I$16)),IF($C32="Toilet (female)",Instructions!$M$46,IF($C32="Urinal",2*$I$16,0))),0) -> 0 | L32: =IF($E$11>0,IF($C32="Toilet (male)",0.1+(0.4*(1-$I$16)),IF($C32="Toilet (female)",Instructions!$N$46,IF($C32="Urinal",0.4*$I$16,0))),0) -> 0 | M32: =IF($F$11>0,IF($C32="Toilet (male)",0.1+(0.1*(1-$I$16)),IF($C32="Toilet (female)",Instructions!$O$46,IF($C32="Urinal",0.1*$I$16,0))),0) -> 0 | N32: =IF($G$11>0,IF($C32="Toilet (male)",1+(2*(1-$I$16)),IF($C32="Toilet (female)",Instructions!$P$46,IF($C32="Urinal",2*$I$16,0))),0) -> 0 | O32: =IF($H$11>0,IF($C32="Toilet (male)",Instructions!$Q$45,IF($C32="Toilet (female)",Instructions!$Q$46,IF($C32="Urinal",Instructions!$Q$47,0))),0) -> 0 | R32: =IFERROR(IF(C32="Toilet (female)",(($D$13*K32)+($E$13*L32)+($F$13*M32)+($G$13*N32)+($H$13*O32)+($I$13*P32)),(($D$12*K32)+($E$12*L32)+($F$12*M32)+($G$12*N32)+($H$12*O32)+($I$12*P32))),0) -> 0 | U32: =IFERROR(IF($S32>0,G32*(S32*(I32/100)),G32*(R32*(I32/100))),0) -> 0 | V32: =IFERROR(IF($S32>0,H32*(S32*(I32/100)),H32*(R32*(I32/100))),0) -> 0 | X32: =IF(OR(C32="Toilet (male)",C32="Toilet (female)"),"Toilet",IF(C32="Urinal","Urinal","")) -> 
A33: =IF(B33>0,0,0) -> 0 | G33: =IFERROR(IF(Instructions!$T$57=1,VLOOKUP(C33,Instructions!$C$45:$J$47,5,TRUE),VLOOKUP(C33,Instructions!$C$45:$J$47,7,TRUE)),"") ->  | K33: =IF($D$11>0,IF($C33="Toilet (male)",1+(2*(1-$I$16)),IF($C33="Toilet (female)",Instructions!$M$46,IF($C33="Urinal",2*$I$16,0))),0) -> 0 | L33: =IF($E$11>0,IF($C33="Toilet (male)",0.1+(0.4*(1-$I$16)),IF($C33="Toilet (female)",Instructions!$N$46,IF($C33="Urinal",0.4*$I$16,0))),0) -> 0 | M33: =IF($F$11>0,IF($C33="Toilet (male)",0.1+(0.1*(1-$I$16)),IF($C33="Toilet (female)",Instructions!$O$46,IF($C33="Urinal",0.1*$I$16,0))),0) -> 0 | N33: =IF($G$11>0,IF($C33="Toilet (male)",1+(2*(1-$I$16)),IF($C33="Toilet (female)",Instructions!$P$46,IF($C33="Urinal",2*$I$16,0))),0) -> 0 | O33: =IF($H$11>0,IF($C33="Toilet (male)",Instructions!$Q$45,IF($C33="Toilet (female)",Instructions!$Q$46,IF($C33="Urinal",Instructions!$Q$47,0))),0) -> 0 | R33: =IFERROR(IF(C33="Toilet (female)",(($D$13*K33)+($E$13*L33)+($F$13*M33)+($G$13*N33)+($H$13*O33)+($I$13*P33)),(($D$12*K33)+($E$12*L33)+($F$12*M33)+($G$12*N33)+($H$12*O33)+($I$12*P33))),0) -> 0 | U33: =IFERROR(IF($S33>0,G33*(S33*(I33/100)),G33*(R33*(I33/100))),0) -> 0 | V33: =IFERROR(IF($S33>0,H33*(S33*(I33/100)),H33*(R33*(I33/100))),0) -> 0 | X33: =IF(OR(C33="Toilet (male)",C33="Toilet (female)"),"Toilet",IF(C33="Urinal","Urinal","")) -> 
G34: =IFERROR(IF(Instructions!$T$57=1,VLOOKUP(C34,Instructions!$C$45:$J$47,5,TRUE),VLOOKUP(C34,Instructions!$C$45:$J$47,7,TRUE)),"") ->  | K34: =IF($D$11>0,IF($C34="Toilet (male)",1+(2*(1-$I$16)),IF($C34="Toilet (female)",Instructions!$M$46,IF($C34="Urinal",2*$I$16,0))),0) -> 0 | L34: =IF($E$11>0,IF($C34="Toilet (male)",0.1+(0.4*(1-$I$16)),IF($C34="Toilet (female)",Instructions!$N$46,IF($C34="Urinal",0.4*$I$16,0))),0) -> 0 | M34: =IF($F$11>0,IF($C34="Toilet (male)",0.1+(0.1*(1-$I$16)),IF($C34="Toilet (female)",Instructions!$O$46,IF($C34="Urinal",0.1*$I$16,0))),0) -> 0 | N34: =IF($G$11>0,IF($C34="Toilet (male)",1+(2*(1-$I$16)),IF($C34="Toilet (female)",Instructions!$P$46,IF($C34="Urinal",2*$I$16,0))),0) -> 0 | O34: =IF($H$11>0,IF($C34="Toilet (male)",Instructions!$Q$45,IF($C34="Toilet (female)",Instructions!$Q$46,IF($C34="Urinal",Instructions!$Q$47,0))),0) -> 0 | R34: =IFERROR(IF(C34="Toilet (female)",(($D$13*K34)+($E$13*L34)+($F$13*M34)+($G$13*N34)+($H$13*O34)+($I$13*P34)),(($D$12*K34)+($E$12*L34)+($F$12*M34)+($G$12*N34)+($H$12*O34)+($I$12*P34))),0) -> 0 | U34: =IFERROR(IF($S34>0,G34*(S34*(I34/100)),G34*(R34*(I34/100))),0) -> 0 | V34: =IFERROR(IF($S34>0,H34*(S34*(I34/100)),H34*(R34*(I34/100))),0) -> 0 | X34: =IF(OR(C34="Toilet (male)",C34="Toilet (female)"),"Toilet",IF(C34="Urinal","Urinal","")) -> 
G35: =IFERROR(IF(Instructions!$T$57=1,VLOOKUP(C35,Instructions!$C$45:$J$47,5,TRUE),VLOOKUP(C35,Instructions!$C$45:$J$47,7,TRUE)),"") ->  | K35: =IF($D$11>0,IF($C35="Toilet (male)",1+(2*(1-$I$16)),IF($C35="Toilet (female)",Instructions!$M$46,IF($C35="Urinal",2*$I$16,0))),0) -> 0 | L35: =IF($E$11>0,IF($C35="Toilet (male)",0.1+(0.4*(1-$I$16)),IF($C35="Toilet (female)",Instructions!$N$46,IF($C35="Urinal",0.4*$I$16,0))),0) -> 0 | M35: =IF($F$11>0,IF($C35="Toilet (male)",0.1+(0.1*(1-$I$16)),IF($C35="Toilet (female)",Instructions!$O$46,IF($C35="Urinal",0.1*$I$16,0))),0) -> 0 | N35: =IF($G$11>0,IF($C35="Toilet (male)",1+(2*(1-$I$16)),IF($C35="Toilet (female)",Instructions!$P$46,IF($C35="Urinal",2*$I$16,0))),0) -> 0 | O35: =IF($H$11>0,IF($C35="Toilet (male)",Instructions!$Q$45,IF($C35="Toilet (female)",Instructions!$Q$46,IF($C35="Urinal",Instructions!$Q$47,0))),0) -> 0 | R35: =IFERROR(IF(C35="Toilet (female)",(($D$13*K35)+($E$13*L35)+($F$13*M35)+($G$13*N35)+($H$13*O35)+($I$13*P35)),(($D$12*K35)+($E$12*L35)+($F$12*M35)+($G$12*N35)+($H$12*O35)+($I$12*P35))),0) -> 0 | U35: =IFERROR(IF($S35>0,G35*(S35*(I35/100)),G35*(R35*(I35/100))),0) -> 0 | V35: =IFERROR(IF($S35>0,H35*(S35*(I35/100)),H35*(R35*(I35/100))),0) -> 0 | X35: =IF(OR(C35="Toilet (male)",C35="Toilet (female)"),"Toilet",IF(C35="Urinal","Urinal","")) -> 
A36: A | B36: =CONCATENATE("Baseline case annual flush volume ",IF(Instructions!$T$57=1,"(gallons/year)","(liters/year)")) -> Baseline case annual flush volume (gallons/year) | I36: =(SUM(U31:U35)*$I$19) -> 0
B37: =CONCATENATE("Design case annual flush volume ",IF(Instructions!$T$57=1,"(gallons/year)","(liters/year)")) -> Design case annual flush volume (gallons/year) | I37: =(SUM(V31:V35)*$I$19) -> 0
B40: Table: Flow Fixtures
B41: 1. Indicate the Fixture ID that matches the information provided in the plumbing schedule. 2. Select the Fixture Type installed on the project. 3. If necessary, modify the Duration column for non-default values. 4. Enter the Design Flow Rate identified by the manufacturer. 5. Enter Percent of Occupants with access to the fixture. If the fixture is installed in all restrooms, use 100%. 6. If necessary, modify the Total Uses per Day column for non-default uses.
B42: Fixture Information | E42: Duration | G42: Flow Rate | I42: Percent of Occupants (%) | K42: Uses per Day | R42: Total Daily Uses | U42: Total Daily Water Use
B43: Fixture ID | C43: Fixture Type | E43: Default (sec) | F43: Non-default (sec) (Optional) | G43: =CONCATENATE("Baseline Flow Rate",IF(Instructions!$T$57=1," (gpm)"," (lpm)")) -> Baseline Flow Rate (gpm) | H43: =CONCATENATE("Design Flow Rate",IF(Instructions!$T$57=1," (gpm)"," (lpm)")) -> Design Flow Rate (gpm) | K43: Employees (FTE) | L43: Visitors | M43: Retail Customers | N43: Students (K-12) | O43: Residential | P43: =IF($I$10="Other (specify)","Other",$I$10) -> Other | R43: Default | S43: Non-default (Optional) | U43: =CONCATENATE("Baseline ",IF(Instructions!$T$57=1,"(gallons)","(liters)")) -> Baseline (gallons) | V43: =CONCATENATE("Design ",IF(Instructions!$T$57=1,"(gallons)","(liters)")) -> Design (gallons)
A44: =IF(B44>0,1,1) -> 1 | E44: =IFERROR(VLOOKUP(C44,Instructions!$C$45:$K$53,9,FALSE),"") ->  | G44: =IFERROR(IF(Instructions!$T$57=1,VLOOKUP(C44,Instructions!$C$45:$K$53,5,FALSE),VLOOKUP(C44,Instructions!$C$45:$K$53,7,FALSE)),"") ->  | K44: =IF($D$11>0,IFERROR(VLOOKUP($C44,Instructions!$C$45:$Q$53,11,FALSE),0),0) -> 0 | L44: =IF($E$11>0,IFERROR(VLOOKUP($C44,Instructions!$C$45:$Q$53,12,FALSE),0),0) -> 0 | M44: =IF($F$11>0,IFERROR(VLOOKUP($C44,Instructions!$C$45:$Q$53,13,FALSE),0),0) -> 0 | N44: =IF($G$11>0,IFERROR(VLOOKUP($C44,Instructions!$C$45:$Q$53,14,FALSE),0),0) -> 0 | O44: =IF($H$11>0,IFERROR(VLOOKUP($C44,Instructions!$C$45:$Q$53,15,FALSE),0),0) -> 0 | R44: =IFERROR(($D$11*K44)+($E$11*L44)+($F$11*M44)+($G$11*N44)+($H$11*O44)+($I$11*P44),0) -> 0 | U44: =IFERROR(IF(S44>0, IF(E44="n/a",G44*(S44*(I44/100))*(60/60), IF(F44>0,G44*(S44*(I44/100))*(F44/60), G44*(S44*(I44/100))*(E44/60))), IF(E44="n/a",G44*(R44*(I44/100))*(60/60), IF(F44<0,G44*(R44*(I44/100))*(F44/60), G44*(R44*(I44/100))*(E44/60))) ),0) -> 0 | V44: =IFERROR(IF(S44>0, IF(E44="n/a",H44*(S44*(I44/100))*(60/60), IF(F44>0,H44*(S44*(I44/100))*(F44/60), H44*(S44*(I44/100))*(E44/60))), IF(E44="n/a",H44*(R44*(I44/100))*(60/60), IF(F44>0,H44*(R44*(I44/100))*(F44/60), H44*(R44*(I44/100))*(E44/60))) ),0) -> 0
A45: =IF(B45>0,1,1) -> 1 | E45: =IFERROR(VLOOKUP(C45,Instructions!$C$45:$K$53,9,FALSE),"") ->  | G45: =IFERROR(IF(Instructions!$T$57=1,VLOOKUP(C45,Instructions!$C$45:$K$53,5,FALSE),VLOOKUP(C45,Instructions!$C$45:$K$53,7,FALSE)),"") ->  | K45: =IF($D$11>0,IFERROR(VLOOKUP($C45,Instructions!$C$45:$Q$53,11,FALSE),0),0) -> 0 | L45: =IF($E$11>0,IFERROR(VLOOKUP($C45,Instructions!$C$45:$Q$53,12,FALSE),0),0) -> 0 | M45: =IF($F$11>0,IFERROR(VLOOKUP($C45,Instructions!$C$45:$Q$53,13,FALSE),0),0) -> 0 | N45: =IF($G$11>0,IFERROR(VLOOKUP($C45,Instructions!$C$45:$Q$53,14,FALSE),0),0) -> 0 | O45: =IF($H$11>0,IFERROR(VLOOKUP($C45,Instructions!$C$45:$Q$53,15,FALSE),0),0) -> 0 | R45: =IFERROR(($D$11*K45)+($E$11*L45)+($F$11*M45)+($G$11*N45)+($H$11*O45)+($I$11*P45),0) -> 0 | U45: =IFERROR(IF(S45>0, IF(E45="n/a",G45*(S45*(I45/100))*(60/60), IF(F45>0,G45*(S45*(I45/100))*(F45/60), G45*(S45*(I45/100))*(E45/60))), IF(E45="n/a",G45*(R45*(I45/100))*(60/60), IF(F45<0,G45*(R45*(I45/100))*(F45/60), G45*(R45*(I45/100))*(E45/60))) ),0) -> 0 | V45: =IFERROR(IF(S45>0, IF(E45="n/a",H45*(S45*(I45/100))*(60/60), IF(F45>0,H45*(S45*(I45/100))*(F45/60), H45*(S45*(I45/100))*(E45/60))), IF(E45="n/a",H45*(R45*(I45/100))*(60/60), IF(F45>0,H45*(R45*(I45/100))*(F45/60), H45*(R45*(I45/100))*(E45/60))) ),0) -> 0
A46: =IF(B46>0,1,1) -> 1 | E46: =IFERROR(VLOOKUP(C46,Instructions!$C$45:$K$53,9,FALSE),"") ->  | G46: =IFERROR(IF(Instructions!$T$57=1,VLOOKUP(C46,Instructions!$C$45:$K$53,5,FALSE),VLOOKUP(C46,Instructions!$C$45:$K$53,7,FALSE)),"") ->  | K46: =IF($D$11>0,IFERROR(VLOOKUP($C46,Instructions!$C$45:$Q$53,11,FALSE),0),0) -> 0 | L46: =IF($E$11>0,IFERROR(VLOOKUP($C46,Instructions!$C$45:$Q$53,12,FALSE),0),0) -> 0 | M46: =IF($F$11>0,IFERROR(VLOOKUP($C46,Instructions!$C$45:$Q$53,13,FALSE),0),0) -> 0 | N46: =IF($G$11>0,IFERROR(VLOOKUP($C46,Instructions!$C$45:$Q$53,14,FALSE),0),0) -> 0 | O46: =IF($H$11>0,IFERROR(VLOOKUP($C46,Instructions!$C$45:$Q$53,15,FALSE),0),0) -> 0 | R46: =IFERROR(($D$11*K46)+($E$11*L46)+($F$11*M46)+($G$11*N46)+($H$11*O46)+($I$11*P46),0) -> 0 | U46: =IFERROR(IF(S46>0, IF(E46="n/a",G46*(S46*(I46/100))*(60/60), IF(F46>0,G46*(S46*(I46/100))*(F46/60), G46*(S46*(I46/100))*(E46/60))), IF(E46="n/a",G46*(R46*(I46/100))*(60/60), IF(F46<0,G46*(R46*(I46/100))*(F46/60), G46*(R46*(I46/100))*(E46/60))) ),0) -> 0 | V46: =IFERROR(IF(S46>0, IF(E46="n/a",H46*(S46*(I46/100))*(60/60), IF(F46>0,H46*(S46*(I46/100))*(F46/60), H46*(S46*(I46/100))*(E46/60))), IF(E46="n/a",H46*(R46*(I46/100))*(60/60), IF(F46>0,H46*(R46*(I46/100))*(F46/60), H46*(R46*(I46/100))*(E46/60))) ),0) -> 0
E47: =IFERROR(VLOOKUP(C47,Instructions!$C$45:$K$53,9,FALSE),"") ->  | G47: =IFERROR(IF(Instructions!$T$57=1,VLOOKUP(C47,Instructions!$C$45:$K$53,5,FALSE),VLOOKUP(C47,Instructions!$C$45:$K$53,7,FALSE)),"") ->  | K47: =IF($D$11>0,IFERROR(VLOOKUP($C47,Instructions!$C$45:$Q$53,11,FALSE),0),0) -> 0 | L47: =IF($E$11>0,IFERROR(VLOOKUP($C47,Instructions!$C$45:$Q$53,12,FALSE),0),0) -> 0 | M47: =IF($F$11>0,IFERROR(VLOOKUP($C47,Instructions!$C$45:$Q$53,13,FALSE),0),0) -> 0 | N47: =IF($G$11>0,IFERROR(VLOOKUP($C47,Instructions!$C$45:$Q$53,14,FALSE),0),0) -> 0 | O47: =IF($H$11>0,IFERROR(VLOOKUP($C47,Instructions!$C$45:$Q$53,15,FALSE),0),0) -> 0 | R47: =IFERROR(($D$11*K47)+($E$11*L47)+($F$11*M47)+($G$11*N47)+($H$11*O47)+($I$11*P47),0) -> 0 | U47: =IFERROR(IF(S47>0, IF(E47="n/a",G47*(S47*(I47/100))*(60/60), IF(F47>0,G47*(S47*(I47/100))*(F47/60), G47*(S47*(I47/100))*(E47/60))), IF(E47="n/a",G47*(R47*(I47/100))*(60/60), IF(F47<0,G47*(R47*(I47/100))*(F47/60), G47*(R47*(I47/100))*(E47/60))) ),0) -> 0 | V47: =IFERROR(IF(S47>0, IF(E47="n/a",H47*(S47*(I47/100))*(60/60), IF(F47>0,H47*(S47*(I47/100))*(F47/60), H47*(S47*(I47/100))*(E47/60))), IF(E47="n/a",H47*(R47*(I47/100))*(60/60), IF(F47>0,H47*(R47*(I47/100))*(F47/60), H47*(R47*(I47/100))*(E47/60))) ),0) -> 0
E48: =IFERROR(VLOOKUP(C48,Instructions!$C$45:$K$53,9,FALSE),"") ->  | G48: =IFERROR(IF(Instructions!$T$57=1,VLOOKUP(C48,Instructions!$C$45:$K$53,5,FALSE),VLOOKUP(C48,Instructions!$C$45:$K$53,7,FALSE)),"") ->  | K48: =IF($D$11>0,IFERROR(VLOOKUP($C48,Instructions!$C$45:$Q$53,11,FALSE),0),0) -> 0 | L48: =IF($E$11>0,IFERROR(VLOOKUP($C48,Instructions!$C$45:$Q$53,12,FALSE),0),0) -> 0 | M48: =IF($F$11>0,IFERROR(VLOOKUP($C48,Instructions!$C$45:$Q$53,13,FALSE),0),0) -> 0 | N48: =IF($G$11>0,IFERROR(VLOOKUP($C48,Instructions!$C$45:$Q$53,14,FALSE),0),0) -> 0 | O48: =IF($H$11>0,IFERROR(VLOOKUP($C48,Instructions!$C$45:$Q$53,15,FALSE),0),0) -> 0 | R48: =IFERROR(($D$11*K48)+($E$11*L48)+($F$11*M48)+($G$11*N48)+($H$11*O48)+($I$11*P48),0) -> 0 | U48: =IFERROR(IF(S48>0, IF(E48="n/a",G48*(S48*(I48/100))*(60/60), IF(F48>0,G48*(S48*(I48/100))*(F48/60), G48*(S48*(I48/100))*(E48/60))), IF(E48="n/a",G48*(R48*(I48/100))*(60/60), IF(F48<0,G48*(R48*(I48/100))*(F48/60), G48*(R48*(I48/100))*(E48/60))) ),0) -> 0 | V48: =IFERROR(IF(S48>0, IF(E48="n/a",H48*(S48*(I48/100))*(60/60), IF(F48>0,H48*(S48*(I48/100))*(F48/60), H48*(S48*(I48/100))*(E48/60))), IF(E48="n/a",H48*(R48*(I48/100))*(60/60), IF(F48>0,H48*(R48*(I48/100))*(F48/60), H48*(R48*(I48/100))*(E48/60))) ),0) -> 0
A49: B | B49: =CONCATENATE("Baseline case annual flow volume ",IF(Instructions!$T$57=1,"(gallons/year)","(liters/year)")) -> Baseline case annual flow volume (gallons/year) | I49: =SUM(U44:U48)*$I$19 -> 0
B50: =CONCATENATE("Design case annual flow volume ",IF(Instructions!$T$57=1,"(gallons/year)","(liters/year)")) -> Design case annual flow volume (gallons/year) | I50: =SUM(V44:V48)*$I$19 -> 0

Sheet Base Calc (hidden)
B2: =REPLACE(CELL("filename",A1),1,FIND("]",CELL("filename",A1)),"") -> Base Calc
B5: Group name | D5: =B2 -> Base Calc
B6: Table: Project Information
B7: Enter project occupancy information. This information should be consistent with occupancy numbers used in other LEED credits.
B8: Non-default gender mix The default gender mix is half male and half female. If necessary, modify the Male and Female occupant type columns for non-default gender mix if the project is specifically designed for an alternative gender ratio or the project is expected to have alternative gender usage rates for the life of the building. | Y8: Non-default gender mix | Z8: FALSE
B9: The project includes ADA and/or gender-neutral bathrooms If the project includes separate gender neutral and/or ADA restrooms without urinals, the LEED default assumption is that 5% of male occupants and 5% of female occupants use these restrooms. Enter 95% into the percent of males expected to use restrooms with urinals below. Alternately, the project team can estimate this percentage based on the project's restroom layout/anticipated usage patterns or weighted fixture counts. | Y9: Non-default gender mix | Z9: TRUE
B10: Occupancy Type | D10: Employees (FTE) | E10: Visitors | F10: Retail Customers | G10: Students (K-12) | H10: Residential | I10: Other (specify) | K10: Gender Ratio (%) | AB10: Nondefault values
B11: Total | K11: =SUM(K12:K13) -> 0 | X11: Baseline | Y11: Flow | Z11: =I49 -> 0 | AB11: =AB12+AB13 -> 0 | AC11: 0 | AD11: 0 | AE11: 0 | AF11: 0 | AG11: 0
B12: Male | D12: =IF(ISODD(D$11)=TRUE,INT(D$11/2)+1,D$11/2) -> 0 | E12: 0 | F12: 0 | G12: 0 | H12: 0 | I12: 0 | K12: =IFERROR(SUM($D$12:$I$12) / SUM(Total2),0) -> 0 | X12: Baseline | Y12: Flush | Z12: =I36 -> 0
B13: Female | D13: =INT(D$11/2) -> 0 | E13: 0 | F13: 0 | G13: 0 | H13: 0 | I13: 0 | K13: =IFERROR(SUM($D$13:$I$13)/SUM(Total2),0) -> 0 | X13: Design | Y13: Flow | Z13: =I50 -> 0
X14: Design | Y14: Flush | Z14: =I37 -> 0 | AB14: Default values
B15: Determine the percent of males expected to use urinals (enter 100% if all male restrooms have urinals, 0% if the project contains no urinals, etc)
B16: Percent of males expected to use restrooms with urinals | I16: 1 | AB16: =IF(ISODD(AB$11)=TRUE,INT(AB$11/2)+1,AB$11/2) -> 0 | AC16: 0 | AD16: 0 | AE16: 0 | AF16: 0 | AG16: 0
AB17: =INT(AB$11/2) -> 0 | AC17: 0 | AD17: 0 | AE17: 0 | AF17: 0 | AG17: 0
B18: Enter the number of days the project is accessible to employees or FTE.
B19: Annual days of operation | I19: 365
B20: =IF(I19>365,"Annual days of operation must be between 1 and 365.","") -> 
B21: For projects with dual-flush toilets
B22: Enter the resulting flush rate into the design case flush rate section below.
B23: =CONCATENATE("Low flush ",IF(Instructions!$T$57=1,"(gpf)","(lpf)")) -> Low flush (gpf)
B24: =CONCATENATE("Full flush ",IF(Instructions!$T$57=1,"(gpf)","(lpf)")) -> Full flush (gpf)
B25: =CONCATENATE("LEED weighted average flush rate ",IF(Instructions!$T$57=1,"(gpf)","(lpf)")) -> LEED weighted average flush rate (gpf) | E25: =IFERROR(((K12*E23* (2-(I16*2)) )+(K13*2*E23)+(K12*E24)+(K13*E24))/((K12*(1+ (2-(I16*2)) )+(K13*(1+2)))),0) -> 0
B27: Table: Flush Fixtures
B28: 1. Indicate the Fixture ID that matches the information provided in the plumbing schedule. 2. Select the Fixture Family and Fixture Type installed on the project. 3. Enter the Design Flush Rate identified by the manufacturer - for dual flush toilets, use the dual flush calculator to determine average flush rate. 4. Enter Percent of Occupants with access to the fixture. If the fixture is installed in all restrooms, use 100%. 5. If necessary, modify the Total Uses per Day column for non-default uses.
B29: Fixture Information | G29: Flush Rate | I29: Percent of Occupants (%) | K29: Uses per Day | R29: Total Daily Uses | U29: Total Daily Water Use
B30: Fixture ID | C30: Fixture Family | D30: Fixture Type | G30: =CONCATENATE("Baseline Flush Rate",IF(Instructions!T57=1," (gpf)"," (lpf)")) -> Baseline Flush Rate (gpf) | H30: =CONCATENATE("Design Flush Rate",IF(Instructions!T57=1," (gpf)"," (lpf)")) -> Design Flush Rate (gpf) | K30: Employees (FTE) | L30: Visitors | M30: Retail Customers | N30: Students (K-12) | O30: Residential | P30: =IF($I$10="Other (specify)","Other",$I$10) -> Other | R30: Default | S30: Non-default (Optional) | U30: =CONCATENATE("Baseline ",IF(Instructions!$T$57=1,"(gallons)","(liters)")) -> Baseline (gallons) | V30: =CONCATENATE("Design ",IF(Instructions!$T$57=1,"(gallons)","(liters)")) -> Design (gallons) | X30: Helper column
A31: =IF(B31>0,0,0) -> 0 | G31: =IFERROR(IF(Instructions!$T$57=1,VLOOKUP(C31,Instructions!$C$45:$J$47,5,TRUE),VLOOKUP(C31,Instructions!$C$45:$J$47,7,TRUE)),"") ->  | K31: =IF($D$11>0,IF($C31="Toilet (male)",1+(2*(1-$I$16)),IF($C31="Toilet (female)",Instructions!$M$46,IF($C31="Urinal",2*$I$16,0))),0) -> 0 | L31: =IF($E$11>0,IF($C31="Toilet (male)",0.1+(0.4*(1-$I$16)),IF($C31="Toilet (female)",Instructions!$N$46,IF($C31="Urinal",0.4*$I$16,0))),0) -> 0 | M31: =IF($F$11>0,IF($C31="Toilet (male)",0.1+(0.1*(1-$I$16)),IF($C31="Toilet (female)",Instructions!$O$46,IF($C31="Urinal",0.1*$I$16,0))),0) -> 0 | N31: =IF($G$11>0,IF($C31="Toilet (male)",1+(2*(1-$I$16)),IF($C31="Toilet (female)",Instructions!$P$46,IF($C31="Urinal",2*$I$16,0))),0) -> 0 | O31: =IF($H$11>0,IF($C31="Toilet (male)",Instructions!$Q$45,IF($C31="Toilet (female)",Instructions!$Q$46,IF($C31="Urinal",Instructions!$Q$47,0))),0) -> 0 | R31: =IFERROR(IF(C31="Toilet (female)",(($D$13*K31)+($E$13*L31)+($F$13*M31)+($G$13*N31)+($H$13*O31)+($I$13*P31)),(($D$12*K31)+($E$12*L31)+($F$12*M31)+($G$12*N31)+($H$12*O31)+($I$12*P31))),0) -> 0 | U31: =IFERROR(IF($S31>0,G31*(S31*(I31/100)),G31*(R31*(I31/100))),0) -> 0 | V31: =IFERROR(IF($S31>0,H31*(S31*(I31/100)),H31*(R31*(I31/100))),0) -> 0 | X31: =IF(OR(C31="Toilet (male)",C31="Toilet (female)"),"Toilet",IF(C31="Urinal","Urinal","")) -> 
A32: =IF(B32>0,0,0) -> 0 | G32: =IFERROR(IF(Instructions!$T$57=1,VLOOKUP(C32,Instructions!$C$45:$J$47,5,TRUE),VLOOKUP(C32,Instructions!$C$45:$J$47,7,TRUE)),"") ->  | K32: =IF($D$11>0,IF($C32="Toilet (male)",1+(2*(1-$I$16)),IF($C32="Toilet (female)",Instructions!$M$46,IF($C32="Urinal",2*$I$16,0))),0) -> 0 | L32: =IF($E$11>0,IF($C32="Toilet (male)",0.1+(0.4*(1-$I$16)),IF($C32="Toilet (female)",Instructions!$N$46,IF($C32="Urinal",0.4*$I$16,0))),0) -> 0 | M32: =IF($F$11>0,IF($C32="Toilet (male)",0.1+(0.1*(1-$I$16)),IF($C32="Toilet (female)",Instructions!$O$46,IF($C32="Urinal",0.1*$I$16,0))),0) -> 0 | N32: =IF($G$11>0,IF($C32="Toilet (male)",1+(2*(1-$I$16)),IF($C32="Toilet (female)",Instructions!$P$46,IF($C32="Urinal",2*$I$16,0))),0) -> 0 | O32: =IF($H$11>0,IF($C32="Toilet (male)",Instructions!$Q$45,IF($C32="Toilet (female)",Instructions!$Q$46,IF($C32="Urinal",Instructions!$Q$47,0))),0) -> 0 | R32: =IFERROR(IF(C32="Toilet (female)",(($D$13*K32)+($E$13*L32)+($F$13*M32)+($G$13*N32)+($H$13*O32)+($I$13*P32)),(($D$12*K32)+($E$12*L32)+($F$12*M32)+($G$12*N32)+($H$12*O32)+($I$12*P32))),0) -> 0 | U32: =IFERROR(IF($S32>0,G32*(S32*(I32/100)),G32*(R32*(I32/100))),0) -> 0 | V32: =IFERROR(IF($S32>0,H32*(S32*(I32/100)),H32*(R32*(I32/100))),0) -> 0 | X32: =IF(OR(C32="Toilet (male)",C32="Toilet (female)"),"Toilet",IF(C32="Urinal","Urinal","")) -> 
A33: =IF(B33>0,0,0) -> 0 | G33: =IFERROR(IF(Instructions!$T$57=1,VLOOKUP(C33,Instructions!$C$45:$J$47,5,TRUE),VLOOKUP(C33,Instructions!$C$45:$J$47,7,TRUE)),"") ->  | K33: =IF($D$11>0,IF($C33="Toilet (male)",1+(2*(1-$I$16)),IF($C33="Toilet (female)",Instructions!$M$46,IF($C33="Urinal",2*$I$16,0))),0) -> 0 | L33: =IF($E$11>0,IF($C33="Toilet (male)",0.1+(0.4*(1-$I$16)),IF($C33="Toilet (female)",Instructions!$N$46,IF($C33="Urinal",0.4*$I$16,0))),0) -> 0 | M33: =IF($F$11>0,IF($C33="Toilet (male)",0.1+(0.1*(1-$I$16)),IF($C33="Toilet (female)",Instructions!$O$46,IF($C33="Urinal",0.1*$I$16,0))),0) -> 0 | N33: =IF($G$11>0,IF($C33="Toilet (male)",1+(2*(1-$I$16)),IF($C33="Toilet (female)",Instructions!$P$46,IF($C33="Urinal",2*$I$16,0))),0) -> 0 | O33: =IF($H$11>0,IF($C33="Toilet (male)",Instructions!$Q$45,IF($C33="Toilet (female)",Instructions!$Q$46,IF($C33="Urinal",Instructions!$Q$47,0))),0) -> 0 | R33: =IFERROR(IF(C33="Toilet (female)",(($D$13*K33)+($E$13*L33)+($F$13*M33)+($G$13*N33)+($H$13*O33)+($I$13*P33)),(($D$12*K33)+($E$12*L33)+($F$12*M33)+($G$12*N33)+($H$12*O33)+($I$12*P33))),0) -> 0 | U33: =IFERROR(IF($S33>0,G33*(S33*(I33/100)),G33*(R33*(I33/100))),0) -> 0 | V33: =IFERROR(IF($S33>0,H33*(S33*(I33/100)),H33*(R33*(I33/100))),0) -> 0 | X33: =IF(OR(C33="Toilet (male)",C33="Toilet (female)"),"Toilet",IF(C33="Urinal","Urinal","")) -> 
G34: =IFERROR(IF(Instructions!$T$57=1,VLOOKUP(C34,Instructions!$C$45:$J$47,5,TRUE),VLOOKUP(C34,Instructions!$C$45:$J$47,7,TRUE)),"") ->  | K34: =IF($D$11>0,IF($C34="Toilet (male)",1+(2*(1-$I$16)),IF($C34="Toilet (female)",Instructions!$M$46,IF($C34="Urinal",2*$I$16,0))),0) -> 0 | L34: =IF($E$11>0,IF($C34="Toilet (male)",0.1+(0.4*(1-$I$16)),IF($C34="Toilet (female)",Instructions!$N$46,IF($C34="Urinal",0.4*$I$16,0))),0) -> 0 | M34: =IF($F$11>0,IF($C34="Toilet (male)",0.1+(0.1*(1-$I$16)),IF($C34="Toilet (female)",Instructions!$O$46,IF($C34="Urinal",0.1*$I$16,0))),0) -> 0 | N34: =IF($G$11>0,IF($C34="Toilet (male)",1+(2*(1-$I$16)),IF($C34="Toilet (female)",Instructions!$P$46,IF($C34="Urinal",2*$I$16,0))),0) -> 0 | O34: =IF($H$11>0,IF($C34="Toilet (male)",Instructions!$Q$45,IF($C34="Toilet (female)",Instructions!$Q$46,IF($C34="Urinal",Instructions!$Q$47,0))),0) -> 0 | R34: =IFERROR(IF(C34="Toilet (female)",(($D$13*K34)+($E$13*L34)+($F$13*M34)+($G$13*N34)+($H$13*O34)+($I$13*P34)),(($D$12*K34)+($E$12*L34)+($F$12*M34)+($G$12*N34)+($H$12*O34)+($I$12*P34))),0) -> 0 | U34: =IFERROR(IF($S34>0,G34*(S34*(I34/100)),G34*(R34*(I34/100))),0) -> 0 | V34: =IFERROR(IF($S34>0,H34*(S34*(I34/100)),H34*(R34*(I34/100))),0) -> 0 | X34: =IF(OR(C34="Toilet (male)",C34="Toilet (female)"),"Toilet",IF(C34="Urinal","Urinal","")) -> 
G35: =IFERROR(IF(Instructions!$T$57=1,VLOOKUP(C35,Instructions!$C$45:$J$47,5,TRUE),VLOOKUP(C35,Instructions!$C$45:$J$47,7,TRUE)),"") ->  | K35: =IF($D$11>0,IF($C35="Toilet (male)",1+(2*(1-$I$16)),IF($C35="Toilet (female)",Instructions!$M$46,IF($C35="Urinal",2*$I$16,0))),0) -> 0 | L35: =IF($E$11>0,IF($C35="Toilet (male)",0.1+(0.4*(1-$I$16)),IF($C35="Toilet (female)",Instructions!$N$46,IF($C35="Urinal",0.4*$I$16,0))),0) -> 0 | M35: =IF($F$11>0,IF($C35="Toilet (male)",0.1+(0.1*(1-$I$16)),IF($C35="Toilet (female)",Instructions!$O$46,IF($C35="Urinal",0.1*$I$16,0))),0) -> 0 | N35: =IF($G$11>0,IF($C35="Toilet (male)",1+(2*(1-$I$16)),IF($C35="Toilet (female)",Instructions!$P$46,IF($C35="Urinal",2*$I$16,0))),0) -> 0 | O35: =IF($H$11>0,IF($C35="Toilet (male)",Instructions!$Q$45,IF($C35="Toilet (female)",Instructions!$Q$46,IF($C35="Urinal",Instructions!$Q$47,0))),0) -> 0 | R35: =IFERROR(IF(C35="Toilet (female)",(($D$13*K35)+($E$13*L35)+($F$13*M35)+($G$13*N35)+($H$13*O35)+($I$13*P35)),(($D$12*K35)+($E$12*L35)+($F$12*M35)+($G$12*N35)+($H$12*O35)+($I$12*P35))),0) -> 0 | U35: =IFERROR(IF($S35>0,G35*(S35*(I35/100)),G35*(R35*(I35/100))),0) -> 0 | V35: =IFERROR(IF($S35>0,H35*(S35*(I35/100)),H35*(R35*(I35/100))),0) -> 0 | X35: =IF(OR(C35="Toilet (male)",C35="Toilet (female)"),"Toilet",IF(C35="Urinal","Urinal","")) -> 
A36: A | B36: =CONCATENATE("Baseline case annual flush volume ",IF(Instructions!$T$57=1,"(gallons/year)","(liters/year)")) -> Baseline case annual flush volume (gallons/year) | I36: =(SUM(U31:U35)*$I$19) -> 0
B37: =CONCATENATE("Design case annual flush volume ",IF(Instructions!$T$57=1,"(gallons/year)","(liters/year)")) -> Design case annual flush volume (gallons/year) | I37: =(SUM(V31:V35)*$I$19) -> 0
B40: Table: Flow Fixtures
B41: 1. Indicate the Fixture ID that matches the information provided in the plumbing schedule. 2. Select the Fixture Type installed on the project. 3. If necessary, modify the Duration column for non-default values. 4. Enter the Design Flow Rate identified by the manufacturer. 5. Enter Percent of Occupants with access to the fixture. If the fixture is installed in all restrooms, use 100%. 6. If necessary, modify the Total Uses per Day column for non-default uses.
B42: Fixture Information | E42: Duration | G42: Flow Rate | I42: Percent of Occupants (%) | K42: Uses per Day | R42: Total Daily Uses | U42: Total Daily Water Use
B43: Fixture ID | C43: Fixture Type | E43: Default (sec) | F43: Non-default (sec) (Optional) | G43: =CONCATENATE("Baseline Flow Rate",IF(Instructions!$T$57=1," (gpm)"," (lpm)")) -> Baseline Flow Rate (gpm) | H43: =CONCATENATE("Design Flow Rate",IF(Instructions!$T$57=1," (gpm)"," (lpm)")) -> Design Flow Rate (gpm) | K43: Employees (FTE) | L43: Visitors | M43: Retail Customers | N43: Students (K-12) | O43: Residential | P43: =IF($I$10="Other (specify)","Other",$I$10) -> Other | R43: Default | S43: Non-default (Optional) | U43: =CONCATENATE("Baseline ",IF(Instructions!$T$57=1,"(gallons)","(liters)")) -> Baseline (gallons) | V43: =CONCATENATE("Design ",IF(Instructions!$T$57=1,"(gallons)","(liters)")) -> Design (gallons)
A44: =IF(B44>0,1,1) -> 1 | E44: =IFERROR(VLOOKUP(C44,Instructions!$C$45:$K$53,9,FALSE),"") ->  | G44: =IFERROR(IF(Instructions!$T$57=1,VLOOKUP(C44,Instructions!$C$45:$K$53,5,FALSE),VLOOKUP(C44,Instructions!$C$45:$K$53,7,FALSE)),"") ->  | K44: =IF($D$11>0,IFERROR(VLOOKUP($C44,Instructions!$C$45:$Q$53,11,FALSE),0),0) -> 0 | L44: =IF($E$11>0,IFERROR(VLOOKUP($C44,Instructions!$C$45:$Q$53,12,FALSE),0),0) -> 0 | M44: =IF($F$11>0,IFERROR(VLOOKUP($C44,Instructions!$C$45:$Q$53,13,FALSE),0),0) -> 0 | N44: =IF($G$11>0,IFERROR(VLOOKUP($C44,Instructions!$C$45:$Q$53,14,FALSE),0),0) -> 0 | O44: =IF($H$11>0,IFERROR(VLOOKUP($C44,Instructions!$C$45:$Q$53,15,FALSE),0),0) -> 0 | R44: =IFERROR(($D$11*K44)+($E$11*L44)+($F$11*M44)+($G$11*N44)+($H$11*O44)+($I$11*P44),0) -> 0 | U44: =IFERROR(IF(S44>0, IF(E44="n/a",G44*(S44*(I44/100))*(60/60), IF(F44>0,G44*(S44*(I44/100))*(F44/60), G44*(S44*(I44/100))*(E44/60))), IF(E44="n/a",G44*(R44*(I44/100))*(60/60), IF(F44<0,G44*(R44*(I44/100))*(F44/60), G44*(R44*(I44/100))*(E44/60))) ),0) -> 0 | V44: =IFERROR(IF(S44>0, IF(E44="n/a",H44*(S44*(I44/100))*(60/60), IF(F44>0,H44*(S44*(I44/100))*(F44/60), H44*(S44*(I44/100))*(E44/60))), IF(E44="n/a",H44*(R44*(I44/100))*(60/60), IF(F44>0,H44*(R44*(I44/100))*(F44/60), H44*(R44*(I44/100))*(E44/60))) ),0) -> 0
A45: =IF(B45>0,1,1) -> 1 | E45: =IFERROR(VLOOKUP(C45,Instructions!$C$45:$K$53,9,FALSE),"") ->  | G45: =IFERROR(IF(Instructions!$T$57=1,VLOOKUP(C45,Instructions!$C$45:$K$53,5,FALSE),VLOOKUP(C45,Instructions!$C$45:$K$53,7,FALSE)),"") ->  | K45: =IF($D$11>0,IFERROR(VLOOKUP($C45,Instructions!$C$45:$Q$53,11,FALSE),0),0) -> 0 | L45: =IF($E$11>0,IFERROR(VLOOKUP($C45,Instructions!$C$45:$Q$53,12,FALSE),0),0) -> 0 | M45: =IF($F$11>0,IFERROR(VLOOKUP($C45,Instructions!$C$45:$Q$53,13,FALSE),0),0) -> 0 | N45: =IF($G$11>0,IFERROR(VLOOKUP($C45,Instructions!$C$45:$Q$53,14,FALSE),0),0) -> 0 | O45: =IF($H$11>0,IFERROR(VLOOKUP($C45,Instructions!$C$45:$Q$53,15,FALSE),0),0) -> 0 | R45: =IFERROR(($D$11*K45)+($E$11*L45)+($F$11*M45)+($G$11*N45)+($H$11*O45)+($I$11*P45),0) -> 0 | U45: =IFERROR(IF(S45>0, IF(E45="n/a",G45*(S45*(I45/100))*(60/60), IF(F45>0,G45*(S45*(I45/100))*(F45/60), G45*(S45*(I45/100))*(E45/60))), IF(E45="n/a",G45*(R45*(I45/100))*(60/60), IF(F45<0,G45*(R45*(I45/100))*(F45/60), G45*(R45*(I45/100))*(E45/60))) ),0) -> 0 | V45: =IFERROR(IF(S45>0, IF(E45="n/a",H45*(S45*(I45/100))*(60/60), IF(F45>0,H45*(S45*(I45/100))*(F45/60), H45*(S45*(I45/100))*(E45/60))), IF(E45="n/a",H45*(R45*(I45/100))*(60/60), IF(F45>0,H45*(R45*(I45/100))*(F45/60), H45*(R45*(I45/100))*(E45/60))) ),0) -> 0
A46: =IF(B46>0,1,1) -> 1 | E46: =IFERROR(VLOOKUP(C46,Instructions!$C$45:$K$53,9,FALSE),"") ->  | G46: =IFERROR(IF(Instructions!$T$57=1,VLOOKUP(C46,Instructions!$C$45:$K$53,5,FALSE),VLOOKUP(C46,Instructions!$C$45:$K$53,7,FALSE)),"") ->  | K46: =IF($D$11>0,IFERROR(VLOOKUP($C46,Instructions!$C$45:$Q$53,11,FALSE),0),0) -> 0 | L46: =IF($E$11>0,IFERROR(VLOOKUP($C46,Instructions!$C$45:$Q$53,12,FALSE),0),0) -> 0 | M46: =IF($F$11>0,IFERROR(VLOOKUP($C46,Instructions!$C$45:$Q$53,13,FALSE),0),0) -> 0 | N46: =IF($G$11>0,IFERROR(VLOOKUP($C46,Instructions!$C$45:$Q$53,14,FALSE),0),0) -> 0 | O46: =IF($H$11>0,IFERROR(VLOOKUP($C46,Instructions!$C$45:$Q$53,15,FALSE),0),0) -> 0 | R46: =IFERROR(($D$11*K46)+($E$11*L46)+($F$11*M46)+($G$11*N46)+($H$11*O46)+($I$11*P46),0) -> 0 | U46: =IFERROR(IF(S46>0, IF(E46="n/a",G46*(S46*(I46/100))*(60/60), IF(F46>0,G46*(S46*(I46/100))*(F46/60), G46*(S46*(I46/100))*(E46/60))), IF(E46="n/a",G46*(R46*(I46/100))*(60/60), IF(F46<0,G46*(R46*(I46/100))*(F46/60), G46*(R46*(I46/100))*(E46/60))) ),0) -> 0 | V46: =IFERROR(IF(S46>0, IF(E46="n/a",H46*(S46*(I46/100))*(60/60), IF(F46>0,H46*(S46*(I46/100))*(F46/60), H46*(S46*(I46/100))*(E46/60))), IF(E46="n/a",H46*(R46*(I46/100))*(60/60), IF(F46>0,H46*(R46*(I46/100))*(F46/60), H46*(R46*(I46/100))*(E46/60))) ),0) -> 0
E47: =IFERROR(VLOOKUP(C47,Instructions!$C$45:$K$53,9,FALSE),"") ->  | G47: =IFERROR(IF(Instructions!$T$57=1,VLOOKUP(C47,Instructions!$C$45:$K$53,5,FALSE),VLOOKUP(C47,Instructions!$C$45:$K$53,7,FALSE)),"") ->  | K47: =IF($D$11>0,IFERROR(VLOOKUP($C47,Instructions!$C$45:$Q$53,11,FALSE),0),0) -> 0 | L47: =IF($E$11>0,IFERROR(VLOOKUP($C47,Instructions!$C$45:$Q$53,12,FALSE),0),0) -> 0 | M47: =IF($F$11>0,IFERROR(VLOOKUP($C47,Instructions!$C$45:$Q$53,13,FALSE),0),0) -> 0 | N47: =IF($G$11>0,IFERROR(VLOOKUP($C47,Instructions!$C$45:$Q$53,14,FALSE),0),0) -> 0 | O47: =IF($H$11>0,IFERROR(VLOOKUP($C47,Instructions!$C$45:$Q$53,15,FALSE),0),0) -> 0 | R47: =IFERROR(($D$11*K47)+($E$11*L47)+($F$11*M47)+($G$11*N47)+($H$11*O47)+($I$11*P47),0) -> 0 | U47: =IFERROR(IF(S47>0, IF(E47="n/a",G47*(S47*(I47/100))*(60/60), IF(F47>0,G47*(S47*(I47/100))*(F47/60), G47*(S47*(I47/100))*(E47/60))), IF(E47="n/a",G47*(R47*(I47/100))*(60/60), IF(F47<0,G47*(R47*(I47/100))*(F47/60), G47*(R47*(I47/100))*(E47/60))) ),0) -> 0 | V47: =IFERROR(IF(S47>0, IF(E47="n/a",H47*(S47*(I47/100))*(60/60), IF(F47>0,H47*(S47*(I47/100))*(F47/60), H47*(S47*(I47/100))*(E47/60))), IF(E47="n/a",H47*(R47*(I47/100))*(60/60), IF(F47>0,H47*(R47*(I47/100))*(F47/60), H47*(R47*(I47/100))*(E47/60))) ),0) -> 0
E48: =IFERROR(VLOOKUP(C48,Instructions!$C$45:$K$53,9,FALSE),"") ->  | G48: =IFERROR(IF(Instructions!$T$57=1,VLOOKUP(C48,Instructions!$C$45:$K$53,5,FALSE),VLOOKUP(C48,Instructions!$C$45:$K$53,7,FALSE)),"") ->  | K48: =IF($D$11>0,IFERROR(VLOOKUP($C48,Instructions!$C$45:$Q$53,11,FALSE),0),0) -> 0 | L48: =IF($E$11>0,IFERROR(VLOOKUP($C48,Instructions!$C$45:$Q$53,12,FALSE),0),0) -> 0 | M48: =IF($F$11>0,IFERROR(VLOOKUP($C48,Instructions!$C$45:$Q$53,13,FALSE),0),0) -> 0 | N48: =IF($G$11>0,IFERROR(VLOOKUP($C48,Instructions!$C$45:$Q$53,14,FALSE),0),0) -> 0 | O48: =IF($H$11>0,IFERROR(VLOOKUP($C48,Instructions!$C$45:$Q$53,15,FALSE),0),0) -> 0 | R48: =IFERROR(($D$11*K48)+($E$11*L48)+($F$11*M48)+($G$11*N48)+($H$11*O48)+($I$11*P48),0) -> 0 | U48: =IFERROR(IF(S48>0, IF(E48="n/a",G48*(S48*(I48/100))*(60/60), IF(F48>0,G48*(S48*(I48/100))*(F48/60), G48*(S48*(I48/100))*(E48/60))), IF(E48="n/a",G48*(R48*(I48/100))*(60/60), IF(F48<0,G48*(R48*(I48/100))*(F48/60), G48*(R48*(I48/100))*(E48/60))) ),0) -> 0 | V48: =IFERROR(IF(S48>0, IF(E48="n/a",H48*(S48*(I48/100))*(60/60), IF(F48>0,H48*(S48*(I48/100))*(F48/60), H48*(S48*(I48/100))*(E48/60))), IF(E48="n/a",H48*(R48*(I48/100))*(60/60), IF(F48>0,H48*(R48*(I48/100))*(F48/60), H48*(R48*(I48/100))*(E48/60))) ),0) -> 0
A49: B | B49: =CONCATENATE("Baseline case annual flow volume ",IF(Instructions!$T$57=1,"(gallons/year)","(liters/year)")) -> Baseline case annual flow volume (gallons/year) | I49: =SUM(U44:U48)*$I$19 -> 0
B50: =CONCATENATE("Design case annual flow volume ",IF(Instructions!$T$57=1,"(gallons/year)","(liters/year)")) -> Design case annual flow volume (gallons/year) | I50: =SUM(V44:V48)*$I$19 -> 0

Sheet Lowrise Indoor Water Use (hidden)
B2: =REPLACE(CELL("filename",A1),1,FIND("]",CELL("filename",A1)),"") -> Lowrise Indoor Water Use
B3: For ND projects with new single-family residential and multiunit residential buildings three stories or fewer
B6: Complete the table for all new single-family residential and new multiunit residential buildings three stories or fewer.
B7: Building ID | C7: Lavatory Faucet | F7: Showerheads | I7: Toilets | L7: Clothes Washers | N7: Total WE Credit Indoor Water Use Points
C8: WaterSense or equivalent labeled | D8: =CONCATENATE("Average rated flow volume ",IF(UOM=1," (gpm)"," (lpm)")) -> Average rated flow volume (gpm) | E8: Points | F8: WaterSense or equivalent labeled | G8: =CONCATENATE("Average rated flow volume ",IF(UOM=1," (gpm)"," (lpm)")) -> Average rated flow volume (gpm) | H8: Points | I8: WaterSense or equivalent labeled | J8: =CONCATENATE("Average rated flush volume ",IF(UOM=1," (gpf)"," (lpf)")) -> Average rated flush volume (gpf) | K8: Points | L8: ENERGY STAR qualified or equivalent | M8: Points
A9: =IF(B9>0,0,0) -> 0 | E9: =IF(C9="Yes",IF(UOM=2,IF(AND(D9>0,D9<=3.7),2,IF(AND(D9>0,D9<=5.6),1,0)),IF(AND(D9>0,D9<=1),2,IF(AND(D9>0,D9<=1.5),1,0))),0) -> 0 | H9: =IF(F9="Yes",IF(UOM=2,IF(AND(G9>0,G9<=5.6),2,IF(AND(G9>0,G9<=6.6),1,0)),IF(AND(G9>0,G9<=1.5),2,IF(AND(G9>0,G9<=1.75),1,0))),0) -> 0 | K9: =IF(I9="Yes",IF(UOM=2,IF(AND(J9>0,J9<=4.1),1,0),IF(AND(J9>0,J9<=1.1),1,0)),0) -> 0 | M9: =IF(L9="Yes",1,0) -> 0 | N9: =SUM(E9,H9,K9,M9) -> 0
A10: =IF(B10>0,0,0) -> 0 | E10: 0 | H10: 0 | K10: 0 | M10: =IF(L10="Yes",1,0) -> 0 | N10: =SUM(E10,H10,K10,M10) -> 0
A11: 0 | E11: 0 | H11: 0 | K11: 0 | M11: 0 | N11: 0
E12: 0 | H12: 0 | K12: 0 | M12: 0 | N12: 0
E13: 0 | H13: 0 | K13: 0 | M13: 0 | N13: 0
A14: A | B14: Total number of new single-family residential buildings and new multiunit residential buildings three stories or fewer | N14: =COUNTA(B9:B13) -> 0
B15: Total number of residential buildings that would earn at least 2 points under LEED v4 for Homes WE Credit Indoor Water Use | N15: =COUNTIF(N9:N13,">=2") -> 0
B16: For project pursuing GIB Credit Indoor Water Use: Total number of residential buildings that would earn at least 4 points under LEED v4 for Homes WE Credit Indoor Water Use | N16: =COUNTIF(N9:N13,">=4") -> 0

Sheet Lowrise Wastewater Use (hidden)
B2: Lowrise Wastewater Use
B3: For ND projects with new single-family residential and multiunit residential buildings three stories or fewer and pursuing GIB Credit Wastewater Management
B6: Complete the tables below for all single-family residential and multiunit residential buildings three stories or more.
B8: Unit Information
B9: List the number of each type of unit for the building. This information is used to double check your entries for each fixture type. For new single family homes, put '1' by the number of bedrooms.
B10: Unit Type | C10: Number of Units | D10: Occupants | V10: Number of Bedrooms | W10: All units
A11: =IF(B11>0,0,0) -> 0 | B11: Efficiency | D11: =(1+1)*C11 -> 0 | V11: 1 | W11: Efficiency
A12: =IF(B12>0,0,0) -> 0 | B12: 1 Bedroom | D12: =(1+1)*C12 -> 0 | V12: 1 | W12: 1 Bedroom
A13: =IF(B13>0,0,0) -> 0 | B13: 2 Bedrooms | D13: =(2+1)*C13 -> 0 | V13: 2 | W13: 2 Bedrooms
A14: =IF(B14>0,0,0) -> 0 | B14: 3 Bedrooms | D14: =(3+1)*C14 -> 0 | V14: 3 | W14: 3 Bedrooms
A15: 0 | B15: 4 Bedrooms | D15: =(4+1)*C15 -> 0 | V15: 4 | W15: 4 Bedrooms
B16: 5 Bedrooms | D16: =(5+1)*C16 -> 0 | V16: 5 | W16: 5 Bedrooms
B17: 6 Bedrooms | D17: =(6+1)*C17 -> 0 | V17: 6 | W17: 6 Bedrooms
B18: Totals | C18: =SUM(C11:C17) -> 0 | D18: =SUM(D11:D17) -> 0
A19: A
B20: Indoor Water Use
B21: This section determines the average flow rate of each fixture, for each unique unit type which is used to calculate the average indoor water use for each unit's occupants.
B22: Fixture Use for Showers
B23: Enter the flow rate and a brief description for each type of fixture.
B24: Fixture ID | C24: =CONCATENATE("Flow Rate ",IF(UOM=1,"(gpm)","(lpm)")) -> Flow Rate (gpm)
A25: =IF(B25>0,0,0) -> 0
A26: =IF(B26>0,0,0) -> 0
A27: =IF(B27>0,0,0) -> 0
B30: Complete one row for each unique set of units and enter each fixture's information. This will calculate the average water use of the occupant of each unit type. If the fixture is the same throughout the building, select 'All units' under 'Unit Type' and select the appropriate fixture in Fixture 1.
B31: Unit Information | F31: Design | P31: Baseline | S31: Totals
B32: Unit Type | C32: Unit Description | D32: Number of Units | E32: Occupants | F32: Fixture 1 | H32: Fixture 2 | J32: Fixture 3 | L32: Fixture 4 | N32: =CONCATENATE("Average Flow Rate ",IF(UOM=1,"(gpm)","(lpm)")) -> Average Flow Rate (gpm) | O32: =CONCATENATE("Calculated Water Usage ",IF(UOM=1," (gallons)"," (liters)")) -> Calculated Water Usage (gallons) | P32: Estimated Fixture Usage (minutes) | Q32: =CONCATENATE("Flow Rate ",IF(UOM=1,"(gpm)","(lpm)")) -> Flow Rate (gpm) | R32: =CONCATENATE("Estimated Water Usage ",IF(UOM=1," (gallons)"," (liters)")) -> Estimated Water Usage (gallons) | S32: =CONCATENATE("Design Monthly Water Use ",IF(UOM=1," (gal/month)"," (l/month)")) -> Design Monthly Water Use (gal/month) | T32: =CONCATENATE("Baseline Monthly Water Use ",IF(UOM=1," (gal/month)"," (l/month)")) -> Baseline Monthly Water Use (gal/month) | V32: Number of Bedrooms
F33: Fixture 1 ID | G33: =CONCATENATE("Fixture 1 Flow Rate ",IF(UOM=1,"(gpm)","(lpm)")) -> Fixture 1 Flow Rate (gpm) | H33: Fixture 2 ID | I33: =CONCATENATE("Fixture 2 Flow Rate ",IF(UOM=1,"(gpm)","(lpm)")) -> Fixture 2 Flow Rate (gpm) | J33: Fixture 3 ID | K33: =CONCATENATE("Fixture 3 Flow Rate ",IF(UOM=1,"(gpm)","(lpm)")) -> Fixture 3 Flow Rate (gpm) | L33: Fixture 4 ID | M33: =CONCATENATE("Fixture 4 Flow Rate ",IF(UOM=1,"(gpm)","(lpm)")) -> Fixture 4 Flow Rate (gpm)
A34: =IF(B34>0,0,0) -> 0 | E34: =IFERROR(IF(B34="All units",$D$18,(V34+1)*D34),0) -> 0 | G34: =IFERROR(VLOOKUP(F34,$B$25:$C$28,2,FALSE),"") ->  | I34: =IFERROR(VLOOKUP(H34,$B$25:$C$28,2,FALSE),"") ->  | K34: =IFERROR(VLOOKUP(J34,$B$25:$C$28,2,FALSE),"") ->  | M34: =IFERROR(VLOOKUP(L34,$B$25:$C$28,2,FALSE),"") ->  | N34: =IFERROR(SUM(G34,I34,K34,M34)/COUNTA(F34,H34,J34,L34),"") ->  | O34: =IFERROR(N34*$P34,"") ->  | P34: =IF(B34<>"",$C$134,"") ->  | Q34: =IF(B34<>"",IF(UOM=1,$F$134,$H$134),"") ->  | R34: =IF(B34<>"",IF(UOM=1,$J$134,$K$134),"") ->  | S34: =IFERROR(O34*30*$E34,"") ->  | T34: =IFERROR(R34*30*$E34,"") ->  | V34: =IFERROR(VLOOKUP(B34,$B$11:$V$17,21,FALSE),"") -> 
A35: =IF(B35>0,0,0) -> 0 | E35: =IFERROR(IF(B35="All units",$D$18,(V35+1)*D35),0) -> 0 | G35: =IFERROR(VLOOKUP(F35,$B$25:$C$28,2,FALSE),"") ->  | K35: =IFERROR(VLOOKUP(J35,$B$25:$C$28,2,FALSE),"") ->  | M35: =IFERROR(VLOOKUP(L35,$B$25:$C$28,2,FALSE),"") ->  | N35: =IFERROR(SUM(G35,I35,K35,M35)/COUNTA(F35,H35,J35,L35),"") ->  | O35: =IFERROR(N35*$P35,"") ->  | P35: =IF(B35<>"",$C$134,"") ->  | Q35: =IF(B35<>"",IF(UOM=1,$F$134,$H$134),"") ->  | R35: =IF(B35<>"",IF(UOM=1,$J$134,$K$134),"") ->  | S35: =IFERROR(O35*30*$E35,"") ->  | T35: =IFERROR(R35*30*$E35,"") ->  | V35: =IFERROR(VLOOKUP(B35,$B$11:$V$17,21,FALSE),"") -> 
A36: =IF(B36>0,0,0) -> 0 | E36: =IFERROR(IF(B36="All units",$D$18,(V36+1)*D36),0) -> 0 | O36: =IFERROR(N36*$P36,"") ->  | P36: =IF(B36<>"",$C$134,"") ->  | Q36: =IF(B36<>"",IF(UOM=1,$F$134,$H$134),"") ->  | R36: =IF(B36<>"",IF(UOM=1,$J$134,$K$134),"") ->  | S36: =IFERROR(O36*30*$E36,"") ->  | T36: =IFERROR(R36*30*$E36,"") ->  | V36: =IFERROR(VLOOKUP(B36,$B$11:$V$17,21,FALSE),"") -> 
E37: =IFERROR(IF(B37="All units",$D$18,(V37+1)*D37),0) -> 0 | O37: =IFERROR(N37*$P37,"") ->  | P37: =IF(B37<>"",$C$134,"") ->  | Q37: =IF(B37<>"",IF(UOM=1,$F$134,$H$134),"") ->  | R37: =IF(B37<>"",IF(UOM=1,$J$134,$K$134),"") ->  | S37: =IFERROR(O37*30*$E37,"") ->  | T37: =IFERROR(R37*30*$E37,"") ->  | V37: =IFERROR(VLOOKUP(B37,$B$11:$V$17,21,FALSE),"") -> 
E38: =IFERROR(IF(B38="All units",$D$18,(V38+1)*D38),0) -> 0 | O38: =IFERROR(N38*$P38,"") ->  | P38: =IF(B38<>"",$C$134,"") ->  | Q38: =IF(B38<>"",IF(UOM=1,$F$134,$H$134),"") ->  | R38: =IF(B38<>"",IF(UOM=1,$J$134,$K$134),"") ->  | S38: =IFERROR(O38*30*$E38,"") ->  | T38: =IFERROR(R38*30*$E38,"") ->  | V38: =IFERROR(VLOOKUP(B38,$B$11:$V$17,21,FALSE),"") -> 
A39: B | B39: Totals for showers | D39: =SUM(D34:D38) -> 0 | E39: =SUM(E34:E38) -> 0 | S39: =SUM(S34:S38) -> 0 | T39: =SUM(T34:T38) -> 0
B42: Fixture Use for Lavatories and Kitchen Faucets
B43: Fixture ID | C43: =CONCATENATE("Flow Rate ",IF(UOM=1,"(gpm)","(lpm)")) -> Flow Rate (gpm)
A44: =IF(B44>0,0,0) -> 0
A45: =IF(B45>0,0,0) -> 0
A46: =IF(B46>0,0,0) -> 0
B49: Unit Information | F49: Design | P49: Baseline | S49: Totals
B50: Unit Type | C50: Unit Description | D50: Number of Units | E50: Occupants | F50: Fixture 1 | H50: Fixture 2 | J50: Fixture 3 | L50: Fixture 4 | N50: =CONCATENATE("Average Flow Rate ",IF(UOM=1,"(gpm)","(lpm)")) -> Average Flow Rate (gpm) | O50: =CONCATENATE("Calculated Water Usage ",IF(UOM=1," (gallons)"," (liters)")) -> Calculated Water Usage (gallons) | P50: Estimated Fixture Usage (minutes) | Q50: =CONCATENATE("Flow Rate ",IF(UOM=1,"(gpm)","(lpm)")) -> Flow Rate (gpm) | R50: =CONCATENATE("Estimated Water Usage ",IF(UOM=1," (gallons)"," (liters)")) -> Estimated Water Usage (gallons) | S50: =CONCATENATE("Design Monthly Water Use ",IF(UOM=1," (gal/month)"," (l/month)")) -> Design Monthly Water Use (gal/month) | T50: =CONCATENATE("Baseline Monthly Water Use ",IF(UOM=1," (gal/month)"," (l/month)")) -> Baseline Monthly Water Use (gal/month) | V50: Number of Bedrooms
F51: Fixture 1 ID | G51: =CONCATENATE("Fixture 1 Flow Rate ",IF(UOM=1,"(gpm)","(lpm)")) -> Fixture 1 Flow Rate (gpm) | H51: Fixture 2 ID | I51: =CONCATENATE("Fixture 2 Flow Rate ",IF(UOM=1,"(gpm)","(lpm)")) -> Fixture 2 Flow Rate (gpm) | J51: Fixture 3 ID | K51: =CONCATENATE("Fixture 3 Flow Rate ",IF(UOM=1,"(gpm)","(lpm)")) -> Fixture 3 Flow Rate (gpm) | L51: Fixture 4 ID | M51: =CONCATENATE("Fixture 4 Flow Rate ",IF(UOM=1,"(gpm)","(lpm)")) -> Fixture 4 Flow Rate (gpm)
A52: =IF(B52>0,0,0) -> 0 | E52: =IFERROR(IF(B52="All units",$D$18,(V52+1)*D52),0) -> 0 | G52: =IFERROR(VLOOKUP(F52,$B$44:$C$47,2,FALSE),"") ->  | I52: =IFERROR(VLOOKUP(H52,$B$44:$C$47,2,FALSE),"") ->  | K52: =IFERROR(VLOOKUP(J52,$B$44:$C$47,2,FALSE),"") ->  | M52: =IFERROR(VLOOKUP(L52,$B$44:$C$47,2,FALSE),"") ->  | N52: =IFERROR(SUM(G52,I52,K52,M52)/COUNTA(F52,H52,J52,L52),"") ->  | O52: =IFERROR(N52*$P52,"") ->  | P52: =IF(B52<>"",$C$135,"") ->  | Q52: =IF(B52<>"",IF(UOM=1,$F$135,$H$135),"") ->  | R52: =IF(B52<>"",IF(UOM=1,$J$135,$K$135),"") ->  | S52: =IFERROR(O52*30*$E52,"") ->  | T52: =IFERROR(R52*30*$E52,"") ->  | V52: =IFERROR(VLOOKUP(B52,$B$11:$V$17,21,FALSE),"") -> 
A53: =IF(B53>0,0,0) -> 0 | E53: =IFERROR(IF(B53="All units",$D$18,(V53+1)*D53),0) -> 0 | G53: =IFERROR(VLOOKUP(F53,$B$44:$C$47,2,FALSE),"") ->  | K53: =IFERROR(VLOOKUP(J53,$B$44:$C$47,2,FALSE),"") ->  | M53: =IFERROR(VLOOKUP(L53,$B$44:$C$47,2,FALSE),"") ->  | N53: =IFERROR(SUM(G53,I53,K53,M53)/COUNTA(F53,H53,J53,L53),"") ->  | O53: =IFERROR(N53*$P53,"") ->  | P53: =IF(B53<>"",$C$135,"") ->  | Q53: =IF(B53<>"",IF(UOM=1,$F$135,$H$135),"") ->  | R53: =IF(B53<>"",IF(UOM=1,$J$135,$K$135),"") ->  | S53: =IFERROR(O53*30*$E53,"") ->  | T53: =IFERROR(R53*30*$E53,"") ->  | V53: =IFERROR(VLOOKUP(B53,$B$11:$V$17,21,FALSE),"") -> 
A54: =IF(B54>0,0,0) -> 0 | E54: =IFERROR(IF(B54="All units",$D$18,(V54+1)*D54),0) -> 0 | O54: =IFERROR(N54*$P54,"") ->  | P54: =IF(B54<>"",$C$135,"") ->  | Q54: =IF(B54<>"",IF(UOM=1,$F$135,$H$135),"") ->  | R54: =IF(B54<>"",IF(UOM=1,$J$135,$K$135),"") ->  | S54: =IFERROR(O54*30*$E54,"") ->  | T54: =IFERROR(R54*30*$E54,"") ->  | V54: =IFERROR(VLOOKUP(B54,$B$11:$V$17,21,FALSE),"") -> 
E55: =IFERROR(IF(B55="All units",$D$18,(V55+1)*D55),0) -> 0 | O55: =IFERROR(N55*$P55,"") ->  | P55: =IF(B55<>"",$C$135,"") ->  | Q55: =IF(B55<>"",IF(UOM=1,$F$135,$H$135),"") ->  | R55: =IF(B55<>"",IF(UOM=1,$J$135,$K$135),"") ->  | S55: =IFERROR(O55*30*$E55,"") ->  | T55: =IFERROR(R55*30*$E55,"") ->  | V55: =IFERROR(VLOOKUP(B55,$B$11:$V$17,21,FALSE),"") -> 
E56: =IFERROR(IF(B56="All units",$D$18,(V56+1)*D56),0) -> 0 | O56: =IFERROR(N56*$P56,"") ->  | P56: =IF(B56<>"",$C$135,"") ->  | Q56: =IF(B56<>"",IF(UOM=1,$F$135,$H$135),"") ->  | R56: =IF(B56<>"",IF(UOM=1,$J$135,$K$135),"") ->  | S56: =IFERROR(O56*30*$E56,"") ->  | T56: =IFERROR(R56*30*$E56,"") ->  | V56: =IFERROR(VLOOKUP(B56,$B$11:$V$17,21,FALSE),"") -> 
A57: C | B57: Totals for lavs and kitchen faucets | D57: =SUM(D52:D56) -> 0 | E57: =SUM(E52:E56) -> 0 | S57: =SUM(S52:S56) -> 0 | T57: =SUM(T52:T56) -> 0
B60: Fixture Use for Toilets
B62: For projects with dual-flush toilets Calculate the average flush rate below and enter the resulting flush rate into the design case flush rate section for toilet.
B63: =CONCATENATE("High flush rate",IF(UOM=1," (gpf)"," (lpf)")) -> High flush rate (gpf)
B64: =CONCATENATE("Low flush rate",IF(UOM=1," (gpf)"," (lpf)")) -> Low flush rate (gpf)
B65: =CONCATENATE("Average flush rate",IF(UOM=1," (gpf)"," (lpf)")) -> Average flush rate (gpf) | E65: =IFERROR((2*E64+E63)/3,0) -> 0
B67: Fixture ID | C67: =CONCATENATE("Flush Rate ",IF(UOM=1,"(gpf)","(lpf)")) -> Flush Rate (gpf)
A68: =IF(B68>0,0,0) -> 0
A69: =IF(B69>0,0,0) -> 0
A70: =IF(B70>0,0,0) -> 0
B73: Unit Information | F73: Design | P73: Baseline | S73: Totals
B74: Unit Type | C74: Unit Description | D74: Number of Units | E74: Occupants | F74: Fixture 1 | H74: Fixture 2 | J74: Fixture 3 | L74: Fixture 4 | N74: =CONCATENATE("Average Flush Rate ",IF(UOM=1,"(gpf)","(lpf)")) -> Average Flush Rate (gpf) | O74: =CONCATENATE("Calculated Water Usage ",IF(UOM=1," (gallons)"," (liters)")) -> Calculated Water Usage (gallons) | P74: Estimated Fixture Usage (flushes) | Q74: =CONCATENATE("Flush Rate ",IF(UOM=1,"(gpf)","(lpf)")) -> Flush Rate (gpf) | R74: =CONCATENATE("Estimated Water Usage ",IF(UOM=1," (gallons)"," (liters)")) -> Estimated Water Usage (gallons) | S74: =CONCATENATE("Design Monthly Water Use ",IF(UOM=1," (gal/month)"," (l/month)")) -> Design Monthly Water Use (gal/month) | T74: =CONCATENATE("Baseline Monthly Water Use ",IF(UOM=1," (gal/month)"," (l/month)")) -> Baseline Monthly Water Use (gal/month) | V74: Number of Bedrooms
F75: Fixture 1 ID | G75: =CONCATENATE("Fixture 1 Flush Rate ",IF(UOM=1,"(gpf)","(lpf)")) -> Fixture 1 Flush Rate (gpf) | H75: Fixture 2 ID | I75: =CONCATENATE("Fixture 2 Flush Rate ",IF(UOM=1,"(gpf)","(lpf)")) -> Fixture 2 Flush Rate (gpf) | J75: Fixture 3 ID | K75: =CONCATENATE("Fixture 3 Flush Rate ",IF(UOM=1,"(gpf)","(lpf)")) -> Fixture 3 Flush Rate (gpf) | L75: Fixture 4 ID | M75: =CONCATENATE("Fixture 4 Flush Rate ",IF(UOM=1,"(gpf)","(lpf)")) -> Fixture 4 Flush Rate (gpf)
A76: =IF(B76>0,0,0) -> 0 | E76: =IFERROR(IF(B76="All units",$D$18,(V76+1)*D76),0) -> 0 | G76: =IFERROR(VLOOKUP(F76,$B$68:$C$71,2,FALSE),"") ->  | I76: =IFERROR(VLOOKUP(H76,$B$68:$C$71,2,FALSE),"") ->  | K76: =IFERROR(VLOOKUP(J76,$B$68:$C$71,2,FALSE),"") ->  | M76: =IFERROR(VLOOKUP(L76,$B$68:$C$71,2,FALSE),"") ->  | N76: =IFERROR(SUM(G76,I76,K76,M76)/COUNTA(F76,H76,J76,L76),"") ->  | O76: =IFERROR(N76*$P76,"") ->  | P76: =IF(B76<>"",$C$136,"") ->  | Q76: =IF(B76<>"",IF(UOM=1,$F$136,$H$136),"") ->  | R76: =IF(B76<>"",IF(UOM=1,$J$136,$K$136),"") ->  | S76: =IFERROR(O76*30*$E76,"") ->  | T76: =IFERROR(R76*30*$E76,"") ->  | V76: =IFERROR(VLOOKUP(B76,$B$11:$V$17,21,FALSE),"") -> 
A77: =IF(B77>0,0,0) -> 0 | E77: =IFERROR(IF(B77="All units",$D$18,(V77+1)*D77),0) -> 0 | K77: =IFERROR(VLOOKUP(J77,$B$68:$C$71,2,FALSE),"") ->  | M77: =IFERROR(VLOOKUP(L77,$B$68:$C$71,2,FALSE),"") ->  | N77: =IFERROR(SUM(G77,I77,K77,M77)/COUNTA(F77,H77,J77,L77),"") ->  | O77: =IFERROR(N77*$P77,"") ->  | P77: =IF(B77<>"",$C$136,"") ->  | Q77: =IF(B77<>"",IF(UOM=1,$F$136,$H$136),"") ->  | R77: =IF(B77<>"",IF(UOM=1,$J$136,$K$136),"") ->  | S77: =IFERROR(O77*30*$E77,"") ->  | T77: =IFERROR(R77*30*$E77,"") ->  | V77: =IFERROR(VLOOKUP(B77,$B$11:$V$17,21,FALSE),"") -> 
A78: =IF(B78>0,0,0) -> 0 | E78: =IFERROR(IF(B78="All units",$D$18,(V78+1)*D78),0) -> 0 | O78: =IFERROR(N78*$P78,"") ->  | P78: =IF(B78<>"",$C$136,"") ->  | Q78: =IF(B78<>"",IF(UOM=1,$F$136,$H$136),"") ->  | R78: =IF(B78<>"",IF(UOM=1,$J$136,$K$136),"") ->  | S78: =IFERROR(O78*30*$E78,"") ->  | T78: =IFERROR(R78*30*$E78,"") ->  | V78: =IFERROR(VLOOKUP(B78,$B$11:$V$17,21,FALSE),"") -> 
E79: =IFERROR(IF(B79="All units",$D$18,(V79+1)*D79),0) -> 0 | O79: =IFERROR(N79*$P79,"") ->  | P79: =IF(B79<>"",$C$136,"") ->  | Q79: =IF(B79<>"",IF(UOM=1,$F$136,$H$136),"") ->  | R79: =IF(B79<>"",IF(UOM=1,$J$136,$K$136),"") ->  | S79: =IFERROR(O79*30*$E79,"") ->  | T79: =IFERROR(R79*30*$E79,"") ->  | V79: =IFERROR(VLOOKUP(B79,$B$11:$V$17,21,FALSE),"") -> 
E80: =IFERROR(IF(B80="All units",$D$18,(V80+1)*D80),0) -> 0 | O80: =IFERROR(N80*$P80,"") ->  | P80: =IF(B80<>"",$C$136,"") ->  | Q80: =IF(B80<>"",IF(UOM=1,$F$136,$H$136),"") ->  | R80: =IF(B80<>"",IF(UOM=1,$J$136,$K$136),"") ->  | S80: =IFERROR(O80*30*$E80,"") ->  | T80: =IFERROR(R80*30*$E80,"") ->  | V80: =IFERROR(VLOOKUP(B80,$B$11:$V$17,21,FALSE),"") -> 
A81: D | B81: Totals for toilets | D81: =SUM(D76:D80) -> 0 | E81: =SUM(E76:E80) -> 0 | S81: =SUM(S76:S80) -> 0 | T81: =SUM(T76:T80) -> 0
B84: Fixture Use for Clothes Washers
B85: Enter the flow rate and a brief description for each type of fixture. If no clothes washer is installed in the project, enter 'Baseline' under 'Fixture ID' and '9.5' under 'Flow Rate.'
B86: Fixture ID | C86: Flow Rate (water factor)
A87: =IF(B87>0,0,0) -> 0
A88: =IF(B88>0,0,0) -> 0
A89: =IF(B89>0,0,0) -> 0
B92: Unit Information | F92: Design | P92: Baseline | S92: Totals
B93: Unit Type | C93: Unit Description | D93: Number of Units | E93: Occupants | F93: Fixture 1 | H93: Fixture 2 | J93: Fixture 3 | L93: Fixture 4 | N93: Average Flow Rate (water factor) | O93: =CONCATENATE("Calculated Water Usage ",IF(UOM=1," (gallons)"," (liters)")) -> Calculated Water Usage (gallons) | P93: =CONCATENATE("Estimated Fixture Usage (cycles ",IF(UOM=1,"at 3.5 cu ft)","at 0.1 cu m)")) -> Estimated Fixture Usage (cycles at 3.5 cu ft) | Q93: Flow Rate (water factor) | R93: =CONCATENATE("Estimated Water Usage ",IF(UOM=1," (gallons)"," (liters)")) -> Estimated Water Usage (gallons) | S93: =CONCATENATE("Design Monthly Water Use ",IF(UOM=1," (gal/month)"," (l/month)")) -> Design Monthly Water Use (gal/month) | T93: =CONCATENATE("Baseline Monthly Water Use ",IF(UOM=1," (gal/month)"," (l/month)")) -> Baseline Monthly Water Use (gal/month) | V93: Number of Bedrooms
F94: Fixture 1 ID | G94: Fixture 1 Flow Rate (water factor) | H94: Fixture 2 ID | I94: Fixture 2 Flow Rate (water factor) | J94: Fixture 3 ID | K94: Fixture 3 Flow Rate (water factor) | L94: Fixture 4 ID | M94: Fixture 4 Flow Rate (water factor)
A95: =IF(B95>0,0,0) -> 0 | E95: =IFERROR(IF(B95="All units",$D$18,(V95+1)*D95),0) -> 0 | G95: =IFERROR(VLOOKUP(F95,$B$87:$C$90,2,FALSE),"") ->  | I95: =IFERROR(VLOOKUP(H95,$B$87:$C$90,2,FALSE),"") ->  | K95: =IFERROR(VLOOKUP(J95,$B$87:$C$90,2,FALSE),"") ->  | M95: =IFERROR(VLOOKUP(L95,$B$87:$C$90,2,FALSE),"") ->  | N95: =IFERROR(SUM(G95,I95,K95,M95)/COUNTA(F95,H95,J95,L95),"") ->  | O95: =IFERROR(IF(N95="","",IF(UOM=1,(P95*N95*3.5)*1.23,((P95*N95*3.5)*1.23)*3.78)),"") ->  | P95: =IF(B95<>"",$C$137,"") ->  | Q95: =IF(B95<>"",$F$137,"") ->  | R95: =IF(B95<>"",IF(UOM=1,$J$137,$K$137),"") ->  | S95: =IFERROR(O95*30*$E95,"") ->  | T95: =IFERROR(R95*30*$E95,"") ->  | V95: =IFERROR(VLOOKUP(B95,$B$11:$V$17,21,FALSE),"") -> 
A96: =IF(B96>0,0,0) -> 0 | E96: =IFERROR(IF(B96="All units",$D$18,(V96+1)*D96),0) -> 0 | G96: =IFERROR(VLOOKUP(F96,$B$87:$C$90,2,FALSE),"") ->  | K96: =IFERROR(VLOOKUP(J96,$B$87:$C$90,2,FALSE),"") ->  | M96: =IFERROR(VLOOKUP(L96,$B$87:$C$90,2,FALSE),"") ->  | N96: =IFERROR(SUM(G96,I96,K96,M96)/COUNTA(F96,H96,J96,L96),"") ->  | O96: =IFERROR(IF(N96="","",IF(UOM=1,(P96*N96*3.5)*1.23,((P96*N96*3.5)*1.23)*3.78)),"") ->  | P96: =IF(B96<>"",$C$137,"") ->  | Q96: =IF(B96<>"",$F$137,"") ->  | R96: =IF(B96<>"",IF(UOM=1,$J$137,$K$137),"") ->  | S96: =IFERROR(O96*30*$E96,"") ->  | T96: =IFERROR(R96*30*$E96,"") ->  | V96: =IFERROR(VLOOKUP(B96,$B$11:$V$17,21,FALSE),"") -> 
A97: =IF(B97>0,0,0) -> 0 | E97: =IFERROR(IF(B97="All units",$D$18,(V97+1)*D97),0) -> 0 | O97: =IFERROR(IF(N97="","",IF(UOM=1,(P97*N97*3.5)*1.23,((P97*N97*3.5)*1.23)*3.78)),"") ->  | P97: =IF(B97<>"",$C$137,"") ->  | Q97: =IF(B97<>"",$F$137,"") ->  | R97: =IF(B97<>"",IF(UOM=1,$J$137,$K$137),"") ->  | V97: =IFERROR(VLOOKUP(B97,$B$11:$V$17,21,FALSE),"") -> 
E98: =IFERROR(IF(B98="All units",$D$18,(V98+1)*D98),0) -> 0 | O98: =IFERROR(IF(N98="","",IF(UOM=1,(P98*N98*3.5)*1.23,((P98*N98*3.5)*1.23)*3.78)),"") ->  | P98: =IF(B98<>"",$C$137,"") ->  | Q98: =IF(B98<>"",$F$137,"") ->  | R98: =IF(B98<>"",IF(UOM=1,$J$137,$K$137),"") ->  | V98: =IFERROR(VLOOKUP(B98,$B$11:$V$17,21,FALSE),"") -> 
E99: =IFERROR(IF(B99="All units",$D$18,(V99+1)*D99),0) -> 0 | O99: =IFERROR(IF(N99="","",IF(UOM=1,(P99*N99*3.5)*1.23,((P99*N99*3.5)*1.23)*3.78)),"") ->  | P99: =IF(B99<>"",$C$137,"") ->  | Q99: =IF(B99<>"",$F$137,"") ->  | R99: =IF(B99<>"",IF(UOM=1,$J$137,$K$137),"") ->  | V99: =IFERROR(VLOOKUP(B99,$B$11:$V$17,21,FALSE),"") -> 
A100: E | B100: Totals for clothes washers | D100: =SUM(D95:D99) -> 0 | E100: =SUM(E95:E99) -> 0 | S100: =SUM(S95:S99) -> 0 | T100: =SUM(T95:T99) -> 0
B103: Fixture Use for Dishwashers
B104: =CONCATENATE("Enter the flow rate and a brief description for each type of fixture. If no dishwasher is installed in the project, enter 'Baseline' under 'Fixture ID', and '",IF(UOM=1,"'6.5' under 'Flow Rate'.","3 under 'Flow Rate'.")) -> Enter the flow rate and a brief description for each type of fixture. If no dishwasher is installed in the project, enter 'Baseline' under 'Fixture ID', and ''6.5' under 'Flow Rate'.
B105: Fixture ID | C105: =CONCATENATE("Flow Rate ",IF(UOM=1,"(gpc)","(lpc)")) -> Flow Rate (gpc)
A106: =IF(B106>0,0,0) -> 0
A107: =IF(B107>0,0,0) -> 0
A108: =IF(B108>0,0,0) -> 0
B111: Unit Information | F111: Design | P111: Baseline | S111: Totals
B112: Unit Type | C112: Unit Description | D112: Number of Units | E112: Occupants | F112: Fixture 1 | H112: Fixture 2 | J112: Fixture 3 | L112: Fixture 4 | N112: =CONCATENATE("Average Flow Rate ",IF(UOM=1,"(gpc)","(lpc)")) -> Average Flow Rate (gpc) | O112: =CONCATENATE("Calculated Water Usage ",IF(UOM=1," (gallons)"," (liters)")) -> Calculated Water Usage (gallons) | P112: Estimated Fixture Usage (cycles) | Q112: =CONCATENATE("Flow Rate ",IF(UOM=1,"(gpc)","(lpc)")) -> Flow Rate (gpc) | R112: =CONCATENATE("Estimated Water Usage ",IF(UOM=1," (gallons)"," (liters)")) -> Estimated Water Usage (gallons) | S112: =CONCATENATE("Design Monthly Water Use ",IF(UOM=1," (gal/month)"," (l/month)")) -> Design Monthly Water Use (gal/month) | T112: =CONCATENATE("Baseline Monthly Water Use ",IF(UOM=1," (gal/month)"," (l/month)")) -> Baseline Monthly Water Use (gal/month) | V112: Number of Bedrooms
F113: Fixture 1 ID | G113: =CONCATENATE("Fixture 1 Flow Rate ",IF(UOM=1,"(gpc)","(lpc)")) -> Fixture 1 Flow Rate (gpc) | H113: Fixture 2 ID | I113: =CONCATENATE("Fixture 2 Flow Rate ",IF(UOM=1,"(gpc)","(lpc)")) -> Fixture 2 Flow Rate (gpc) | J113: Fixture 3 ID | K113: =CONCATENATE("Fixture 3 Flow Rate ",IF(UOM=1,"(gpc)","(lpc)")) -> Fixture 3 Flow Rate (gpc) | L113: Fixture 4 ID | M113: =CONCATENATE("Fixture 4 Flow Rate ",IF(UOM=1,"(gpc)","(lpc)")) -> Fixture 4 Flow Rate (gpc)
A114: =IF(B114>0,0,0) -> 0 | E114: =IFERROR(IF(B114="All units",$D$18,(V114+1)*D114),0) -> 0 | G114: =IFERROR(VLOOKUP(F114,$B$106:$C$109,2,FALSE),"") ->  | I114: =IFERROR(VLOOKUP(H114,$B$106:$C$109,2,FALSE),"") ->  | K114: =IFERROR(VLOOKUP(J114,$B$106:$C$109,2,FALSE),"") ->  | M114: =IFERROR(VLOOKUP(L114,$B$106:$C$109,2,FALSE),"") ->  | N114: =IFERROR(SUM(G114,I114,K114,M114)/COUNTA(F114,H114,J114,L114),"") ->  | O114: =IFERROR(N114*$P114,"") ->  | P114: =IF(B114<>"",$C$138,"") ->  | Q114: =IF(B114<>"",IF(UOM=1,$F$138,$H$138),"") ->  | R114: =IF(B114<>"",IF(UOM=1,$J$138,$K$138),"") ->  | S114: =IFERROR(O114*30*$E114,"") ->  | T114: =IFERROR(R114*30*$E114,"") ->  | V114: =IFERROR(VLOOKUP(B114,$B$11:$V$17,21,FALSE),"") -> 
A115: =IF(B115>0,0,0) -> 0 | E115: =IFERROR(IF(B115="All units",$D$18,(V115+1)*D115),0) -> 0 | G115: =IFERROR(VLOOKUP(F115,$B$106:$C$109,2,FALSE),"") ->  | K115: =IFERROR(VLOOKUP(J115,$B$106:$C$109,2,FALSE),"") ->  | M115: =IFERROR(VLOOKUP(L115,$B$106:$C$109,2,FALSE),"") ->  | N115: =IFERROR(SUM(G115,I115,K115,M115)/COUNTA(F115,H115,J115,L115),"") ->  | O115: =IFERROR(N115*$P115,"") ->  | P115: =IF(B115<>"",$C$138,"") ->  | Q115: =IF(B115<>"",IF(UOM=1,$F$138,$H$138),"") ->  | R115: =IF(B115<>"",IF(UOM=1,$J$138,$K$138),"") ->  | S115: =IFERROR(O115*30*$E115,"") ->  | T115: =IFERROR(R115*30*$E115,"") ->  | V115: =IFERROR(VLOOKUP(B115,$B$11:$V$17,21,FALSE),"") -> 
A116: =IF(B116>0,0,0) -> 0 | E116: =IFERROR(IF(B116="All units",$D$18,(V116+1)*D116),0) -> 0 | O116: =IFERROR(N116*$P116,"") ->  | P116: =IF(B116<>"",$C$138,"") ->  | Q116: =IF(B116<>"",IF(UOM=1,$F$138,$H$138),"") ->  | R116: =IF(B116<>"",IF(UOM=1,$J$138,$K$138),"") ->  | V116: =IFERROR(VLOOKUP(B116,$B$11:$V$17,21,FALSE),"") -> 
E117: =IFERROR(IF(B117="All units",$D$18,(V117+1)*D117),0) -> 0 | O117: =IFERROR(N117*$P117,"") ->  | P117: =IF(B117<>"",$C$138,"") ->  | Q117: =IF(B117<>"",IF(UOM=1,$F$138,$H$138),"") ->  | R117: =IF(B117<>"",IF(UOM=1,$J$138,$K$138),"") ->  | V117: =IFERROR(VLOOKUP(B117,$B$11:$V$17,21,FALSE),"") -> 
E118: =IFERROR(IF(B118="All units",$D$18,(V118+1)*D118),0) -> 0 | O118: =IFERROR(N118*$P118,"") ->  | P118: =IF(B118<>"",$C$138,"") ->  | Q118: =IF(B118<>"",IF(UOM=1,$F$138,$H$138),"") ->  | R118: =IF(B118<>"",IF(UOM=1,$J$138,$K$138),"") ->  | V118: =IFERROR(VLOOKUP(B118,$B$11:$V$17,21,FALSE),"") -> 
A119: F | B119: Totals for dishwashers | D119: =SUM(D114:D118) -> 0 | E119: =SUM(E114:E118) -> 0 | S119: =SUM(S114:S118) -> 0 | T119: =SUM(T114:T118) -> 0
B122: Indoor Water Use Summary
B123: Fixture Type | G123: =CONCATENATE("Design Water Use ",IF(UOM=1," (gal/month)"," (l/month)")) -> Design Water Use (gal/month) | H123: =CONCATENATE("Baseline Water Use ",IF(UOM=1," (gal/month)"," (l/month)")) -> Baseline Water Use (gal/month) | I123: =CONCATENATE("Savings ",IF(UOM=1," (gal/month)"," (l/month)")) -> Savings (gal/month)
B124: Showers | G124: =S39 -> 0 | H124: =T39 -> 0 | I124: =IF(G124=0,0,H124-G124) -> 0
B125: Lavatories and kitchen faucets | G125: =S57 -> 0 | H125: =T57 -> 0 | I125: =IF(G125=0,0,H125-G125) -> 0
B126: Toilets | G126: =S81 -> 0 | H126: =T81 -> 0 | I126: =IF(G126=0,0,H126-G126) -> 0
B127: Clothes washers | G127: =S100 -> 0 | H127: =T100 -> 0 | I127: =IF(G127=0,0,H127-G127) -> 0
B128: Dishwashers | G128: =S119 -> 0 | H128: =T119 -> 0 | I128: =IF(G128=0,0,H128-G128) -> 0
B129: Totals | G129: =SUM(G124:G128) -> 0 | H129: =SUM(H124:H128) -> 0 | I129: =SUM(I124:I128) -> 0
B131: Assumptions
B132: Fixture | C132: Estimated Fixture Usage | F132: Baseline Flush or Flow Rate | J132: Estimated Water Usage
F133: IP | H133: SI | J133: IP (gallons per person) | K133: SI (liters per person)
B134: Shower | C134: =8.2*0.75 -> 6.15 | D134: minutes | F134: 2.5 | G134: gpm | H134: 9.5 | I134: lpm | J134: =F134*C134 -> 15.4 | K134: =H134*C134 -> 58.4
B135: Lavatory or kitchen faucet | C135: 5 | D135: minutes | F135: 2.2 | G135: gpm | H135: 8.3 | I135: lpm | J135: =F135*C135 -> 11 | K135: =H135*C135 -> 41.5
B136: Toilet | C136: 5.05 | D136: flushes | F136: 1.6 | G136: gpf | H136: 6 | I136: lpf | J136: =F136*C136 -> 8.1 | K136: =H136*C136 -> 30.3
B137: Clothes washer | C137: 0.37 | D137: at 3.5 cu ft (0.1 cu m) | F137: 9.5 | G137: WF | H137: 9.5 | I137: WF | J137: =(C137*F137*3.5)*1.23 -> 15.1 | K137: =((C137*F137*3.5)*1.23)*3.78 -> 57.2
B138: Dishwasher | C138: 0.1 | D138: cycles | F138: 6.5 | G138: gpc | H138: 24 | I138: lpc | J138: =F138*C138 -> 0.7 | K138: =H138*C138 -> 2.4

Sheet Summary D+C
C2: 1
C3: 1 | D3: Summary for Design and Construction Rating Systems
C4: 1 | D4: Note: All information on this tab is READ-ONLY. To edit, see the previous tab(s).
C5: 1
C6: 1
C7: 1
C8: 1 | D8: Group Name | E8: Baseline Case | H8: Design Case
E9: =IF(Instructions!T57=1,"(gallons/year)","(liters/year)") -> (gallons/year) | H9: =IF(Instructions!T57=1,"(gallons/year)","(liters/year)") -> (gallons/year)
C10: 1 | E10: Annual Flush Volume | F10: Annual Flow Volume | G10: Annual Consumption | H10: Annual Flush Volume | I10: Annual Flow Volume | J10: Annual Consumption
C11: =IF(OR(D11="Instructions",D11="Base Calc",D11="Lowrise Indoor Water Use",D11="Lowrise Wastewater Use",D11="Summary D+C",D11="Summary O+M",D11="Summary ND",D11="",D11=0),0,1) -> 1 | D11: =IFERROR(INDEX(MID(Sheets,FIND("]",Sheets)+1,255),ROW(A2),1),"") -> Group 1 | E11: =INDIRECT("'"&D11&"'!$Z$12") -> 0 | F11: =INDIRECT("'"&$D11&"'!$Z$11") -> 0 | G11: =E11+F11 -> 0 | H11: =INDIRECT("'"&$D11&"'!$Z$14") -> 0 | I11: =INDIRECT("'"&$D11&"'!$Z$13") -> 0 | J11: =H11+I11 -> 0
C12: 1
B13: A | C13: 1 | D13: =IF(Instructions!T57=1,"Annual baseline water consumption (gallons/year)","Annual baseline water consumption (liters/year)") -> Annual baseline water consumption (gallons/year) | J13: =SUM(G11:G12) -> 0
C14: 1 | D14: =IF(Instructions!T57=1,"Annual design water consumption (gallons/year)","Annual design water consumption (liters/year)") -> Annual design water consumption (gallons/year) | J14: =SUM(J11:J12) -> 0
C15: 1 | D15: Percent water use reduction (%) | J15: =IF(J14=0,0,(J13-J14)/J13) -> 0
C16: 1
F20: =IFERROR(INDEX(MID(Sheets,FIND("]",Sheets)+1,255),ROW(#REF!),1),"") -> 

Sheet Summary O+M
C2: 1
C3: 1 | D3: Summary for Operations and Maintenance Rating Systems
C4: 1 | D4: Note: Baseline and design volumes are READ-ONLY. To edit, see the previous tab(s).
C5: 1
C6: 1
C7: 1 | D7: Unrenovated percentage of fixtures installed before 1995 (%)
C8: 1
C9: 1 | D9: Renovated percentage of fixtures installed in 1995 or later (%)
C10: 1
C11: 1
C12: 1
C13: 1
C14: 1 | D14: Group Name | E14: Baseline Case | H14: Design Case
E15: =IF(Instructions!T57=1,"(gallons/year)","(liters/year)") -> (gallons/year) | H15: =IF(Instructions!T57=1,"(gallons/year)","(liters/year)") -> (gallons/year)
C16: 1 | E16: Annual Flush Volume | F16: Annual Flow Volume | G16: Annual Consumption | H16: Annual Flush Volume | I16: Annual Flow Volume | J16: Annual Consumption
C17: =IF(OR(D17="Instructions",D17="Base Calc",D17="Lowrise Indoor Water Use",D17="Lowrise Wastewater Use",D17="Summary D+C",D17="Summary O+M",D17="Summary ND",D17="",D17=0),0,1) -> 1 | D17: =IFERROR(INDEX(MID(Sheets,FIND("]",Sheets)+1,255),ROW(A2),1),"") -> Group 1 | E17: =INDIRECT("'"&D17&"'!$Z$12") -> 0 | F17: =INDIRECT("'"&$D17&"'!$Z$11") -> 0 | G17: =E17+F17 -> 0 | H17: =INDIRECT("'"&$D17&"'!$Z$14") -> 0 | I17: =INDIRECT("'"&$D17&"'!$Z$13") -> 0 | J17: =H17+I17 -> 0
C18: 1
B19: A | C19: 1 | D19: =IF(Instructions!T57=1,"Annual baseline water consumption (gallons/year)","Annual baseline water consumption (liters/year)") -> Annual baseline water consumption (gallons/year) | J19: =SUM(G17:G18) -> 0
C20: 1 | D20: =IF(Instructions!T57=1,"Annual design water consumption (gallons/year)","Annual design water consumption (liters/year)") -> Annual design water consumption (gallons/year) | J20: =SUM(J17:J18) -> 0
C21: 1 | D21: Baseline multiplier (%) | J21: =((G7*150%)+(G9*120%)) -> 0
C22: 1 | D22: =IF(Instructions!T57=1,"Water consumption maximum (gallons/year)","Water consumption maximum (liters/year)") -> Water consumption maximum (gallons/year) | J22: =J19*J21 -> 0
C23: 1 | D23: Percentage below water consumption maximum (%) | J23: =IF(J22=0,0,(J22-J20)/J22) -> 0
C24: 1
F28: =IFERROR(INDEX(MID(Sheets,FIND("]",Sheets)+1,255),ROW(#REF!),1),"") -> 

Sheet Summary ND (hidden)
C2: 1
C3: 1 | D3: Summary for Neighborhood Development Rating Systems
C4: 1 | D4: Note: All information on this tab is READ-ONLY. To edit, see the previous tab(s).
C5: 1
C6: 1
C7: 1 | D7: GIB Prerequisite/Credit Indoor Water Use Reduction
C8: 1
C9: 1 | D9: Nonresidential buildings, mixed-use buildings, and multifamily residential buildings four stories or more
C10: 1
C11: 1
C12: 1
C13: 1 | D13: Group Name | E13: Baseline Case | H13: Design Case
E14: =IF(Instructions!T57=1,"(gallons/year)","(liters/year)") -> (gallons/year) | H14: =IF(Instructions!T57=1,"(gallons/year)","(liters/year)") -> (gallons/year)
C15: 1 | E15: Annual Flush Volume | F15: Annual Flow Volume | G15: Annual Consumption | H15: Annual Flush Volume | I15: Annual Flow Volume | J15: Annual Consumption
C16: =IF(OR(D16="Instructions",D16="Base Calc",D16="Lowrise Indoor Water Use",D16="Lowrise Wastewater Use",D16="Summary D+C",D16="Summary O+M",D16="Summary ND",D16="",D16=0),0,1) -> 1 | D16: =IFERROR(INDEX(MID(Sheets,FIND("]",Sheets)+1,255),ROW(A2),1),"") -> Group 1 | E16: =INDIRECT("'"&D16&"'!$Z$12") -> 0 | F16: =INDIRECT("'"&$D16&"'!$Z$11") -> 0 | G16: =E16+F16 -> 0 | H16: =INDIRECT("'"&$D16&"'!$Z$14") -> 0 | I16: =INDIRECT("'"&$D16&"'!$Z$13") -> 0 | J16: =H16+I16 -> 0
C17: 1
B18: A | C18: 1 | D18: =IF(Instructions!T57=1,"Annual baseline water consumption (gallons/year)","Annual baseline water consumption (liters/year)") -> Annual baseline water consumption (gallons/year) | J18: =SUM(G16:G17) -> 0
C19: 1 | D19: =IF(Instructions!T57=1,"Annual design water consumption (gallons/year)","Annual design water consumption (liters/year)") -> Annual design water consumption (gallons/year) | J19: =SUM(J16:J17) -> 0
C20: 1 | D20: Percent water use reduction for nonresidential and midrise buildings (%) | J20: =IF(J19=0,0,(J18-J19)/J18) -> 0
C21: 1
C22: 1
C23: 1 | D23: New single-family residential buildings and new multiunit residential buildings three stories or fewer
C24: 1
C25: 1 | D25: Total number of new single-family residential buildings and new multiunit residential buildings three stories or fewer | J25: ='Lowrise Indoor Water Use'!N14 -> 0
C26: 1
C27: 1 | D27: Total number of residential buildings that would earn at least 2 points under LEED v4 for Homes WE Credit Indoor Water Use | J27: ='Lowrise Indoor Water Use'!N15 -> 0
C28: 1
C29: 1 | D29: Percentage of new residential buildings that would earn at least 2 points under LEED v4 for Homes WE Credit Indoor Water Use (%) | J29: =IFERROR(J27/J25,0) -> 0
C30: 1
C31: 1
C32: 1 | D32: For projects pursuing GIB Credit Indoor Water Use Reduction
C33: 1
C34: 1 | D34: Total number of residential buildings that would earn at least 4 points under LEED v4 for Homes WE Credit Indoor Water Use | J34: ='Lowrise Indoor Water Use'!N16 -> 0
C35: 1
C36: 1 | D36: Percentage of new residential buildings that would earn at least 4 points under LEED v4 for Homes WE Credit Indoor Water Use (%) | J36: =IFERROR(J34/J25,0) -> 0
C37: 1
C38: 1
C39: 1 | D39: GIB Credit Wastewater Management
C40: 1 | F40: =IFERROR(INDEX(MID(Sheets,FIND("]",Sheets)+1,255),ROW(#REF!),1),"") -> 
C41: 1 | D41: =CONCATENATE("Annual wastewater flow for nonresidential buildings and multiunit residential buildings four stories or more ",IF(UOM=1,"(gallons/year)","(liters/year)")) -> Annual wastewater flow for nonresidential buildings and multiunit residential buildings four stories or more (gallons/year) | J41: =J19 -> 0
C42: 1
C43: 1 | D43: =CONCATENATE("Annual wastewater flow for single-family residential buildings and multiunit residential buildings three stories or fewer ",IF(UOM=1,"(gallons/year)","(liters/year)")) -> Annual wastewater flow for single-family residential buildings and multiunit residential buildings three stories or fewer (gallons/year) | J43: ='Lowrise Wastewater Use'!G129 -> 0
C45: 1
